Workbook

Sheet Options and Impact
H1: This model is Confidential and Deliberative, and is in draft form for modeling analysis. This model is iterative and will be updated as decisions or DSS requests are made. A final version will be completed subject to QA and final decision making prior to rate issuance.
A2: Connecticut Department of Social Services
A3: Nursing Home Case Mix Reimbursement Options and Impact
A5: Version 3.1 (4/14/2022)
A7: Cost Component Options
A9: Assign Costs to Options Box 1 through 4 | E9: Options Box 1 = Direct Care Case Mix Adjusted | H9: Peer Groups | I9: Median | J9: Limit
C10: Options Box | E10: Type of System | F10: Cost Based | H10: 1 - All Facilities | I10: =Medians!E3 -> 130.16 | J10: =IFERROR(ROUND(I10*Box_1_Median_Percent,2),"N/A") -> 175.72
H11: 2 - CCNH Fairfield County | I11: =Medians!E4 -> 141.33 | J11: =IFERROR(ROUND(I11*Box_1_Median_Percent,2),"N/A") -> 190.8
E12: Peer Group Options | F12: 2/3 - Fairfield, Non-Fairfield | H12: 2 - CCNH Non-Fairfield | I12: =Medians!E5 -> 127.08 | J12: =IFERROR(ROUND(I12*Box_1_Median_Percent,2),"N/A") -> 171.56 | N12: Price Based | O12: 1
E13: Inflation Factor Options | F13: Consumer Price Index | H13: 3 - RHNS Fairfield County | I13: =Medians!E6 -> N/A | J13: =IFERROR(ROUND(I13*Box_1_Median_Percent,2),"N/A") -> N/A | N13: Cost Based
H14: 3 - RHNS Non-Fairfield | I14: =Medians!E7 -> N/A | J14: =IFERROR(ROUND(I14*Box_1_Median_Percent,2),"N/A") -> N/A | N14: 1 - All facilities in one region | O14: 1
E15: Percent of Median to Apply as Price/Limit | F15: 1.35 | H15: Efficiency as % of Median All Facilities | J15: =IFERROR(I10*$F$16,"N/A") -> 130.16
E16: Efficiency as Percentage of Median | F16: 1 | H16: Efficiency as % of Median CCNH Fairfield County | J16: =IFERROR(I11*$F$16,"N/A") -> 141.33 | N16: 2 - Freestanding or Hospital Based
E17: Efficiency Percentage | F17: 0 | H17: Efficiency as % of Median CCNH Non-Fairfield | J17: 127.08 | N17: 3 - Bed Size
E18: Minimum Occupancy | F18: 0.9 | H18: Efficiency as % of Median RHNS Fairfield County | J18: N/A | N18: 4 - Urban or Rural
H19: Efficiency as % of Median RHNS Non-Fairfield | J19: N/A
E21: Options Box 2 - Indirect | H21: Peer Groups | I21: Median | J21: Limit
E22: Type of System | F22: Cost Based | H22: 1 - All Facilities | I22: =Medians!F3 -> 58.8 | J22: =ROUND(I22*Box_2_Median_Percent,2) -> 67.62
N23: Price Based | O23: 2
H24: Efficiency as Percentage of Median | J24: =ROUND(I22*F28,2) -> 58.8 | N24: Cost Based
E25: Inflation Factor Options | F25: Consumer Price Index | N25: 1 - All facilities in one region | O25: 1
E27: Percent of Median to Apply as Price/Limit | F27: 1.15 | N27: 2 - Freestanding or Hospital Based
E28: Efficiency as Percentage of Median | F28: 1 | N28: 3 - Bed Size
E29: Efficiency Percentage | F29: 0.25 | N29: 4 - Urban or Rural
E30: Minimum Occupancy | F30: 0.9
D31: Grouper 48
D32: Grouper 66
A33: Case Mix Index | C33: Four QTR Avg-BCI Excluded | E33: Options Box 3 - Administrative and General | H33: Peer Groups | I33: Median | J33: Price/Limit
E34: Type of System | F34: Cost Based | H34: 1 - All Facilities | I34: =Medians!G3 -> 36.82 | J34: =ROUND(I34*Box_3_Median_Percent,2) -> 36.82 | N34: Price Based | O34: 1
A35: CMI Period | C35: 2021 Q4
H36: Efficiency as % of Median | J36: =ROUND(I34*F40,2) -> 36.82 | N36: Cost Based
A37: Aids Modeled as Standard NF | C37: No | E37: Inflation Factor Options | F37: Consumer Price Index | N37: 1 - All facilities in one region | O37: 1
N38: 2 - Freestanding or Hospital Based
A39: RHNS as Standard NF | C39: CCH / RHNS Combined | E39: Percent of Median to Apply as Price/Limit | F39: 1 | N39: 3 - Bed Size
E40: Efficiency as Percentage of Median | F40: 1 | N40: 4 - Urban or Rural
A41: SLTC as Standard NF | C41: CCH Only | E41: Efficiency Percentage | F41: 0.25
E42: Minimum Occupancy | F42: 0.9
A43: Secure Care as Standard NF | C43: Exclude
N45: Price Based | O45: 1
A46: Reimbursement Rate Phase In Options | E46: Options Box 4 - Capital/Other | H46: Peer Groups | I46: Median | N46: Cost Based
E47: Type of System | F47: Cost Based | H47: 1 - All Facilities | I47: =Medians!H3 -> 6.99 | N47: 1 - All facilities in one region | O47: 1
A48: Rate Phase-in Option | C48: Corridor | N48: 2 - Freestanding or Hospital Based
N49: 3 - Bed Size
E50: Inflation Factor Options | F50: Consumer Price Index | N50: 4 - Urban or Rural
A51: B. Phase-In Blended Percentage (New Casemix Rate) | C51: 0.25
E52: Percent of Median to Apply as Price/Limit | F52: 1
A53: a. Phase-in Rate Corridor Floor | C53: 0 | E53: Incentive Percentage | F53: 0
A54: b. Phase-in Rate Corridor Ceiling | C54: 6.5 | E54: Minimum Occupancy | F54: 0.9
N55: Cost Based

Sheet Facility Summary
B2: Connecticut Department of Social Services
B3: Facility Summary
B4: Note: Please do not sort this tab.
G5: 1 | H5: 2 | I5: 3 | J5: 4 | L5: 5 | M5: 6 | N5: 8 | O5: 9 | R5: 11 | S5: 12 | T5: 13 | U5: 14 | W5: 15 | X5: 16 | Y5: 17 | AB5: 18 | AC5: 19 | AD5: 20 | AE5: 23 | AF5: 24 | AG5: 21 | AH5: 22 | AK5: 25 | AL5: 26
A6: General Provider Information | L6: Rate & Model Information | AB6: Estimated Payments | AL6: Estimated Fiscal Impact | AN6: Rate Prior to Phase-In | BG6: Corridor NF Per Diem Rate BAF Calculation | BK6: Phased In Rate | BN6: Phased In Rate Plus 7/1/2022 Add-Ons
B7: Facility Name | C7: Ownership Type | D7: Region 1 | E7: License Type | F7: Mgmt Company | G7: Provider Number | H7: County | I7: Bed Capacity Last Day of Period | J7: Medicaid CT Days | L7: Calculated Rate (Current System) | M7: Issued Rate | N7: Issued Rate Less Wage Add-on | O7: Total Modeled Rate | P7: Total Modeled Rate Less Wage Add-on | Q7: Modeled Rate Less Current Issued Rate | R7: Box 1 Rate | S7: Box 2 Rate | T7: Box 3 Rate | U7: Box 4 Rate | V7: Provider Tax | W7: FRV | X7: ROE | Y7: Wage Increase | Z7: Social Worker Minimum Staffing Rate Increase | AB7: Payments Based on Calculated Rates (Current System) for the Period 10/1/2021 - 9/30/2022 | AD7: Payments Based on Issued Rates for the Period 10/1/2021 - 9/30/2022 | AF7: Payments Based on Modeled Rates | AH7: Payments Based on Issued Rates Less Wage Add-0n | AJ7: Payments Based on Modeled Rates Less Wage Add-On | AL7: Medicaid Fiscal Impact (Modeled Rate Compared to Current Issued Rate) | AN7: Modeled Rate | BG7: Budget Adjustment Factor (BAF) | BH7: NF Per Diem After BAF | BI7: NF Per Diem Reimbursement Rate After BAF and Phase-In (Corridor Option) | BK7: Phased In Rate | BL7: Phased In Rate Less Issued Rate | BN7: 7/1/2022 4.5% Rate Increase | BO7: Phased In Rate + 7/1/2022 4.5% Rate Increase | BP7: Benefits Enhancement Add-On | BQ7: Phased In Rate Plus 7/1/2022 Add-Ons | BR7: New Rate Less Issued Rate
B8: =IFERROR(INDEX('9.30.19 Costs Original'!A$8:A$9&"",MATCH($G8,'9.30.19 Costs Original'!$F$8:$F$9,0)),"") -> Example Provider # 1 | C8: =IFERROR(INDEX('9.30.19 Costs Original'!C$8:C$9&"",MATCH($G8,'9.30.19 Costs Original'!$F$8:$F$9,0)),"") -> Nurs Fac-CCH | D8: =IF(E8<>"",INDEX('Rate Calculation'!$B$8:$B$9,MATCH(G8,'Rate Calculation'!$E$8:$E$9,0)),"") -> 2 - CCNH Non-Fairfield | E8: =IFERROR(INDEX('9.30.19 Costs Original'!C$8:C$9&"",MATCH($G8,'9.30.19 Costs Original'!$F$8:$F$9,0)),"") -> Nurs Fac-CCH | F8: =IFERROR(INDEX('9.30.19 Costs Original'!E$8:E$9&"",MATCH($G8,'9.30.19 Costs Original'!$F$8:$F$9,0)),"") ->  | G8: 1 | H8: =IFERROR(INDEX('9.30.19 Costs Original'!G$8:G$9&"",MATCH($G8,'9.30.19 Costs Original'!$F$8:$F$9,0)),"") -> Non-Fairfield County | I8: =IF(E8<>"",INDEX('9.30.19 Costs Annualized'!$J$8:$J$9,MATCH($G8,'9.30.19 Costs Annualized'!$F$8:$F$9,0)),"") -> 57 | J8: =IF(E8<>"",INDEX('9.30.19 Costs Annualized'!$L$8:$L$9,MATCH($G8,'9.30.19 Costs Annualized'!$F$8:$F$9,0)),"") -> 11716 | L8: =INDEX('9.30.19 Costs Annualized'!AI$8:AI$9,MATCH($G8,'9.30.19 Costs Annualized'!$F$8:$F$9,0)) -> 300 | M8: =INDEX('9.30.19 Costs Annualized'!AJ$8:AJ$9,MATCH($G8,'9.30.19 Costs Annualized'!$F$8:$F$9,0)) -> 290 | N8: =IFERROR(M8-Y8,"") -> 269.81 | O8: =IF(E8<>"",INDEX('Rate Calculation'!$BB$8:$BB$9,MATCH($G8,'Rate Calculation'!$E$8:$E$9,0)),"") -> 303.86 | P8: =IF(E8<>"",O8-Y8,"") -> 283.67 | Q8: =IF(E8<>"",O8-M8,"") -> 13.86 | R8: =IF(E8<>"",INDEX('Rate Calculation'!$U$8:$U$9,MATCH($G8,'Rate Calculation'!$E$8:$E$9,0)),"") -> 146.2 | S8: =IF(E8<>"",INDEX('Rate Calculation'!$AC$8:$AC$9,MATCH($G8,'Rate Calculation'!$E$8:$E$9,0)),"") -> 61.25 | T8: =IF(E8<>"",INDEX('Rate Calculation'!$AK$8:$AK$9,MATCH($G8,'Rate Calculation'!$E$8:$E$9,0)),"") -> 36.82 | U8: =IF(E8<>"",INDEX('Rate Calculation'!$AO$8:$AO$9,MATCH($G8,'Rate Calculation'!$E$8:$E$9,0)),"") -> 10.08 | V8: =IF(E8<>"",INDEX('Rate Calculation'!$AS$8:$AS$9,MATCH($G8,'Rate Calculation'!$E$8:$E$9,0)),"") -> 17.37 | W8: =IF(E8<>"",INDEX('Rate Calculation'!$AU$8:$AU$9,MATCH($G8,'Rate Calculation'!$E$8:$E$9,0)),"") -> 10.90821897 | X8: =IF(E8<>"",INDEX('Rate Calculation'!$AV$8:$AV$9,MATCH($G8,'Rate Calculation'!$E$8:$E$9,0)),"") -> 1.0454 | Y8: =IF(E8<>"",INDEX('Rate Calculation'!$AX$8:$AX$9,MATCH($G8,'Rate Calculation'!$E$8:$E$9,0)),"") -> 20.19 | Z8: =IF(E8<>"",INDEX('Rate Calculation'!$AZ$8:$AZ$9,MATCH($G8,'Rate Calculation'!$E$8:$E$9,0)),"") -> 0 | AB8: =IF(E8<>"",L8*J8,"") -> 3514800 | AD8: =IF(E8<>"",M8*J8,"") -> 3397640 | AF8: =IF(E8<>"",O8*J8,"") -> 3560023.76 | AH8: =IF(E8<>"",N8*J8,"") -> 3161093.96 | AJ8: =IF(E8<>"",P8*J8,"") -> 3323477.72 | AL8: =IF(E8<>"",AF8-AD8,"") -> 162383.76 | AN8: =O8 -> 303.86 | BG8: 1 | BH8: =IFERROR(BG8*AN8,"") -> 303.86 | BI8: =IFERROR(IF(BH8<M8,MAX(BH8,M8-'Options and Impact'!$C$53),MIN(BH8,M8+'Options and Impact'!$C$54)),"") -> 296.5 | BK8: =IF(E8<>"",BI8,"") -> 296.5 | BL8: =IF(E8<>"",BK8-M8,"") -> 6.5 | BN8: =ROUND(BK8*0.045,2) -> 13.34 | BO8: =BK8+BN8 -> 309.84 | BQ8: =BO8+BP8 -> 309.84 | BR8: =IF(E8<>"",BQ8-M8,"") -> 19.84
B9: =IFERROR(INDEX('9.30.19 Costs Original'!A$8:A$9&"",MATCH($G9,'9.30.19 Costs Original'!$F$8:$F$9,0)),"") -> Example Provider # 2 | C9: =IFERROR(INDEX('9.30.19 Costs Original'!C$8:C$9&"",MATCH($G9,'9.30.19 Costs Original'!$F$8:$F$9,0)),"") -> Nurs Fac-CCH | D9: =IF(E9<>"",INDEX('Rate Calculation'!$B$8:$B$9,MATCH(G9,'Rate Calculation'!$E$8:$E$9,0)),"") -> 2 - CCNH Fairfield County | E9: =IFERROR(INDEX('9.30.19 Costs Original'!C$8:C$9&"",MATCH($G9,'9.30.19 Costs Original'!$F$8:$F$9,0)),"") -> Nurs Fac-CCH | F9: =IFERROR(INDEX('9.30.19 Costs Original'!E$8:E$9&"",MATCH($G9,'9.30.19 Costs Original'!$F$8:$F$9,0)),"") ->  | G9: 2 | H9: =IFERROR(INDEX('9.30.19 Costs Original'!G$8:G$9&"",MATCH($G9,'9.30.19 Costs Original'!$F$8:$F$9,0)),"") -> Fairfield County | I9: =IF(E9<>"",INDEX('9.30.19 Costs Annualized'!$J$8:$J$9,MATCH($G9,'9.30.19 Costs Annualized'!$F$8:$F$9,0)),"") -> 135 | J9: =IF(E9<>"",INDEX('9.30.19 Costs Annualized'!$L$8:$L$9,MATCH($G9,'9.30.19 Costs Annualized'!$F$8:$F$9,0)),"") -> 41556 | L9: =INDEX('9.30.19 Costs Annualized'!AI$8:AI$9,MATCH($G9,'9.30.19 Costs Annualized'!$F$8:$F$9,0)) -> 250 | M9: =INDEX('9.30.19 Costs Annualized'!AJ$8:AJ$9,MATCH($G9,'9.30.19 Costs Annualized'!$F$8:$F$9,0)) -> 270 | N9: 249.66 | O9: =IF(E9<>"",INDEX('Rate Calculation'!$BB$8:$BB$9,MATCH($G9,'Rate Calculation'!$E$8:$E$9,0)),"") -> 258.49 | P9: 238.15 | Q9: -11.51 | R9: =IF(E9<>"",INDEX('Rate Calculation'!$U$8:$U$9,MATCH($G9,'Rate Calculation'!$E$8:$E$9,0)),"") -> 120 | S9: =IF(E9<>"",INDEX('Rate Calculation'!$AC$8:$AC$9,MATCH($G9,'Rate Calculation'!$E$8:$E$9,0)),"") -> 51.82 | T9: =IF(E9<>"",INDEX('Rate Calculation'!$AK$8:$AK$9,MATCH($G9,'Rate Calculation'!$E$8:$E$9,0)),"") -> 34.5175 | U9: =IF(E9<>"",INDEX('Rate Calculation'!$AO$8:$AO$9,MATCH($G9,'Rate Calculation'!$E$8:$E$9,0)),"") -> 7.06 | V9: =IF(E9<>"",INDEX('Rate Calculation'!$AS$8:$AS$9,MATCH($G9,'Rate Calculation'!$E$8:$E$9,0)),"") -> 20.58 | W9: =IF(E9<>"",INDEX('Rate Calculation'!$AU$8:$AU$9,MATCH($G9,'Rate Calculation'!$E$8:$E$9,0)),"") -> 3.8821 | X9: =IF(E9<>"",INDEX('Rate Calculation'!$AV$8:$AV$9,MATCH($G9,'Rate Calculation'!$E$8:$E$9,0)),"") -> 0.2919 | Y9: =IF(E9<>"",INDEX('Rate Calculation'!$AX$8:$AX$9,MATCH($G9,'Rate Calculation'!$E$8:$E$9,0)),"") -> 20.34 | Z9: =IF(E9<>"",INDEX('Rate Calculation'!$AZ$8:$AZ$9,MATCH($G9,'Rate Calculation'!$E$8:$E$9,0)),"") -> 0 | AB9: 10389000 | AD9: 11220120 | AF9: 10741810.44 | AH9: 10374870.96 | AJ9: 9896561.4 | AL9: -478309.56 | AN9: 258.49 | BG9: 1 | BH9: =IFERROR(BG9*AN9,"") -> 258.49 | BI9: =IFERROR(IF(BH9<M9,MAX(BH9,M9-'Options and Impact'!$C$53),MIN(BH9,M9+'Options and Impact'!$C$54)),"") -> 270 | BK9: =IF(E9<>"",BI9,"") -> 270 | BL9: =IF(E9<>"",BK9-M9,"") -> 0 | BN9: =ROUND(BK9*0.045,2) -> 12.15 | BO9: =BK9+BN9 -> 282.15 | BQ9: =BO9+BP9 -> 282.15 | BR9: 12.15

Sheet Facility Profile
A1: DRAFT July 1, 2022 REIMBURSEMENT RATE
A2: (FOR DEMONSTRATION PURPOSES ONLY)
A3: =INDEX('Facility Summary'!$B:$B,MATCH('Facility Profile'!$B$14,'Facility Summary'!$G:$G,0)) -> 0
A5: SELECTED MODEL OPTIONS
A6: Cost Category | B6: Selection | C6: Peer Groups | E6: % of Median | F6: Incentive % | G6: Min. Occ.
A7: Box 1 | B7: ='Options and Impact'!F10 -> Cost Based | C7: ='Options and Impact'!F12 -> 2/3 - Fairfield, Non-Fairfield | E7: =Box_1_Median_Percent -> 1.35 | F7: =Box_1_Incentive_Percentage -> 0 | G7: ='Options and Impact'!F18 -> 0.9
A8: Box 2 | B8: ='Options and Impact'!F22 -> Cost Based | E8: =Box_2_Median_Percent -> 1.15 | F8: =Box_2_Incentive_Percentage -> 0.25 | G8: ='Options and Impact'!F30 -> 0.9
A9: Box 3 | B9: ='Options and Impact'!F34 -> Cost Based | E9: =Box_3_Median_Percent -> 1 | F9: =Box_3_Incentive_Percentage -> 0.25 | G9: ='Options and Impact'!F42 -> 0.9
A10: Box 4 | B10: ='Options and Impact'!F47 -> Cost Based | E10: =Box_4_Median_Percent -> 1 | F10: =Box_4_Incentive_Percentage -> 0 | G10: ='Options and Impact'!F54 -> 0.9
A12: DISCLAIMER: Please Note this rate sheet is for demonstration purposes only, and will not be utilized for Medicaid payment/claim adjudication purposes. It is designed to show the potential provider impact from the transition to a case mix (acuity-based) reimbursement system. Facility cost and rate information is subject to change from subsequent audit/review findings, CMI updates, additional legislative changes, and/or further system modification.
A14: Number: | B14: 1 | D14: Actual Resident Days: | F14: =INDEX('Rate Calculation'!$I$8:$I$9,MATCH($B$14,'Rate Calculation'!$E$8:$E$9,0)) -> 20331
A15: County: | B15: =INDEX('Facility Summary'!$H$8:$H$9,MATCH($B$14,'Facility Summary'!$G$8:$G$9,0)) -> Non-Fairfield County | D15: Bed Days Available: | F15: =INDEX('Rate Calculation'!$K$8:$K$9,MATCH($B$14,'Rate Calculation'!$E$8:$E$9,0)) -> 20805
A16: Geographic Location: | B16: =INDEX('Facility Summary'!$D$8:$D$9,MATCH($B$14,'Facility Summary'!$G$8:$G$9,0)) -> 2 - CCNH Non-Fairfield | D16: Occupancy %: | F16: =ROUND(F14/F15,4) -> 0.9772
A17: Cost Year Begin: | B17: =INDEX('9.30.19 Costs Annualized'!$H$8:$H$9,MATCH($B$14,'9.30.19 Costs Annualized'!$F$8:$F$9,0)) -> 2018-10-01 | D17: # Beds: | F17: =INDEX('Rate Calculation'!$G$8:$G$9,MATCH($B$14,'Rate Calculation'!$E$8:$E$9,0)) -> 57
A18: Cost Year End: | B18: =INDEX('9.30.19 Costs Annualized'!$I$8:$I$9,MATCH($B$14,'9.30.19 Costs Annualized'!$F$8:$F$9,0)) -> 2019-09-30
A20: CMI INFORMATION
A21: Quarter Ending | B21: Normalizing (Base Year) CMI | C21: Medicaid CMI | D21: Case Mix Neutrality Factor | E21: Medicaid CMI for Rate Setting
A22: =EOMONTH(DATE(LEFT('Options and Impact'!$C$35,4),RIGHT('Options and Impact'!$C$35,1)*3,1),0) -> 2021-12-31 | B22: =ROUND(IF('Options and Impact'!$C$33='Data Validation'!$A$31,INDEX('Normalizing CMI'!$G$9:$G$10,MATCH(B14,'Normalizing CMI'!$A$9:$A$10,0)),INDEX('Normalizing CMI'!$J$9:$J$10,MATCH(B14,'Normalizing CMI'!$A$9:$A$10,0))),4) -> 1.1259 | C22: =INDEX('Medicaid CMI'!$BD$8:$BD$9,MATCH($B$14,'Medicaid CMI'!$A$8:$A$9,0)) -> 1.0566 | D22: 1 | E22: =C22*D22 -> 1.0566
A24: NET OPERATING
A25: Description | B25: Direct Care | C25: Indirect Care | D25: Admin. & General | E25: Capital/Other | F25: Provider Tax
A26: Facility Costs | B26: =INDEX('Rate Calculation'!$M$8:$M$9,MATCH($B$14,'Rate Calculation'!$E$8:$E$9,0)) -> 3001072 | C26: =INDEX('Rate Calculation'!$W$8:$W$9,MATCH($B$14,'Rate Calculation'!$E$8:$E$9,0)) -> 1179924 | D26: =INDEX('Rate Calculation'!$AE$8:$AE$9,MATCH($B$14,'Rate Calculation'!$E$8:$E$9,0)) -> 968221 | E26: =INDEX('Rate Calculation'!$AM$8:$AM$9,MATCH($B$14,'Rate Calculation'!$E$8:$E$9,0)) -> 194195 | F26: =INDEX('Rate Calculation'!$AQ$8:$AQ$9,MATCH($B$14,'Rate Calculation'!$E$8:$E$9,0)) -> 334575
A27: Inflation Multiplier | B27: =IF('Options and Impact'!F13='Data Validation'!$A$16,Inflation!$G$19,Inflation!$G$11) -> 1.0554 | C27: =IF('Options and Impact'!F25='Data Validation'!$A$16,Inflation!$G$19,Inflation!$G$11) -> 1.0554 | D27: =IF('Options and Impact'!F37='Data Validation'!$A$16,Inflation!$G$19,Inflation!$G$11) -> 1.0554 | E27: =IF('Options and Impact'!F50='Data Validation'!$A$16,Inflation!$G$19,Inflation!$G$26) -> 1.0554 | F27: =IF('Options and Impact'!F50='Data Validation'!$A$16,Inflation!$G$19,Inflation!$G$26) -> 1.0554
A28: Inflated Costs | B28: =ROUND(B27*B26,0) -> 3167331 | C28: =ROUND(C27*C26,0) -> 1245292 | D28: =ROUND(D27*D26,0) -> 1021860 | E28: =ROUND(E27*E26,0) -> 204953 | F28: =ROUND(F27*F26,0) -> 353110
A29: Days Used in Division | B29: =MAX((G7*$F$15),$F$14) -> 20331 | C29: =MAX(($G8*$F$15),$F$14) -> 20331 | D29: =MAX(($G9*$F$15),$F$14) -> 20331 | E29: =MAX(($G10*$F$15),$F$14) -> 20331 | F29: =MAX(($G10*$F$15),$F$14) -> 20331
A30: Divided by Days | B30: =ROUND(B28/B29,2) -> 155.79 | C30: =ROUND(C28/C29,2) -> 61.25 | D30: =ROUND(D28/D29,2) -> 50.26 | E30: =ROUND(E28/E29,2) -> 10.08 | F30: =ROUND(F28/F29,2) -> 17.37
A31: Total Facility CMI | B31: =+B22 -> 1.1259 | C31: NA | D31: NA | E31: NA | F31: NA
A32: Cost Per Diem at Total Facility CMI | B32: =ROUND(B30/B31,2) -> 138.37 | C32: NA | D32: NA | E32: NA | F32: NA
A33: Limit | B33: =INDEX('Rate Calculation'!$Q$8:$Q$9,MATCH($B$14,'Rate Calculation'!$E$8:$E$9,0)) -> 171.56 | C33: =INDEX('Rate Calculation'!$Z$8:$Z$9,MATCH($B$14,'Rate Calculation'!$E$8:$E$9,0)) -> 67.62 | D33: =INDEX('Rate Calculation'!$AH$8:$AH$9,MATCH($B$14,'Rate Calculation'!$E$8:$E$9,0)) -> 36.82 | E33: NA | F33: NA
A34: Allowed Per Diem | B34: =INDEX('Rate Calculation'!$R$8:$R$9,MATCH($B$14,'Rate Calculation'!$E$8:$E$9,0)) -> 138.37 | C34: =INDEX('Rate Calculation'!$AA$8:$AA$9,MATCH($B$14,'Rate Calculation'!$E$8:$E$9,0)) -> 61.25 | D34: =INDEX('Rate Calculation'!$AI$8:$AI$9,MATCH($B$14,'Rate Calculation'!$E$8:$E$9,0)) -> 36.82 | E34: =INDEX('Rate Calculation'!$AO$8:$AO$9,MATCH($B$14,'Rate Calculation'!$E$8:$E$9,0)) -> 10.08 | F34: =INDEX('Rate Calculation'!$AS$8:$AS$9,MATCH($B$14,'Rate Calculation'!$E$8:$E$9,0)) -> 17.37
A35: Facility's Medicaid CMI | B35: =E22 -> 1.0566 | C35: NA | D35: NA | E35: NA | F35: NA
A36: Rate | B36: =ROUND(B35*B34,2) -> 146.2 | C36: =+C34 -> 61.25 | D36: =+D34 -> 36.82 | E36: =+E34 -> 10.08 | F36: =+F34 -> 17.37
A37: Incentive Allowance | B37: NA | C37: =INDEX('Rate Calculation'!$AB$8:$AB$9,MATCH($B$14,'Rate Calculation'!$E$8:$E$9,0)) -> 0 | D37: =IF(Box_3_type_of_system='Data Validation'!A14,0,INDEX('Rate Calculation'!$AJ$8:$AJ$9,MATCH($B$14,'Rate Calculation'!$E$8:$E$9,0))) -> 0 | E37: NA | F37: NA
A38: Final Rate | B38: =+B36 -> 146.2 | C38: =+C37+C36 -> 61.25 | D38: =+D37+D36 -> 36.82 | E38: =E36 -> 10.08 | F38: =F36 -> 17.37
A40: Grand Total Net Operating Components | F40: =SUM(B38:F38) -> 271.72
A43: FRV and ROE Rate
A44: Fair Rental Value (FRV) Rate | F44: =INDEX('Rate Calculation'!$AU$8:$AU$9,MATCH($B$14,'Rate Calculation'!$E$8:$E$9,0)) -> 10.90821897
A45: Return on Equity (ROE) Rate | F45: =INDEX('Rate Calculation'!$AV$8:$AV$9,MATCH($B$14,'Rate Calculation'!$E$8:$E$9,0)) -> 1.0454
A48: Wage Add-On
A49: Wage Add-On | F49: =INDEX('Rate Calculation'!$AX$8:$AX$9,MATCH($B$14,'Rate Calculation'!$E$8:$E$9,0)) -> 20.19
A50: Social Worker Minimum Staffing Rate Increase | F50: =INDEX('Rate Calculation'!$AZ$8:$AZ$9,MATCH($B$14,'Rate Calculation'!$E$8:$E$9,0)) -> 0
A53: Initial System Phase-In Parameters
A54: Max System Allowed Gain from Issued Rate (Stop Gain) | F54: 6.5
A55: Max System Allowed Loss From Issued Rate (Stop Loss) | F55: 0
A58: Rate Setting Parameters
A60: Case Mix Reimbursement Rate (Prior to Phase-In Adjustment) | F60: =ROUND(SUM(F50+F49,F45,F44,F40),2) -> 303.86
A61: Current Issued Rate | F61: =INDEX('Facility Summary'!$M$8:$M$9,MATCH($B$14,'Facility Summary'!$G$8:$G$9,0)) -> 290
A62: Variance to Issued Rate | F62: =F60-F61 -> 13.86
A64: Adjustment to Case Mix Reimbursement Rate for Phase-In Parameters | F64: =IF(F62<F55,F55-F62,IF(F62>F54,F54-F62,0)) -> -7.36
A66: Case Mix Reimbursement Rate (After Phase-In Adjustment) | F66: =F60+F64 -> 296.5
A67: 7/1/2022 4.5% Rate Increase | F67: =INDEX('Facility Summary'!$BN$8:$BN$9,MATCH($B$14,'Facility Summary'!$G$8:$G$9,0)) -> 13.34
A68: Benefits Enhancement Add-On | F68: =INDEX('Facility Summary'!$BP$8:$BP$9,MATCH($B$14,'Facility Summary'!$G$8:$G$9,0)) -> 0
A69: Case Mix Reimbursement Rate (After Increases) | F69: =SUM(F66:F68) -> 309.84
A71: Total Gain/(Loss) from Issued Rate Prior to 7/1/2022 Increases | F71: =F66-F61 -> 6.5

Sheet Rate Calculation
A2: Connecticut Department of Social Services
A3: Rate Calculation Summary
A4: Note: Please do not sort this tab.
E5: 1 | F5: 2 | G5: 3 | H5: 4 | I5: 5 | J5: 6 | K5: 7 | L5: 8 | M5: 9 | N5: 10 | O5: 11 | P5: 12 | Q5: 13 | R5: 14 | T5: 15 | U5: 16 | W5: 18 | X5: 19 | Y5: 20 | Z5: 21 | AA5: 22 | AB5: 23 | AC5: 24 | AD5: 25 | AE5: 26 | AF5: 27 | AG5: 28 | AH5: 29 | AI5: 30 | AJ5: 31 | AK5: 32 | AL5: 33 | AM5: 34 | AN5: 35 | AO5: 36 | AP5: 37 | AQ5: 38 | AR5: 39 | AS5: 40 | AT5: 41 | AU5: 42 | AV5: 43 | AW5: 44 | AX5: 45 | BA5: 46 | BB5: 47
A6: General Provider Information | M6: Box 1 Direct Care Information | W6: Box 2 Indirect Care Information | AE6: Box 3 A&G Information | AM6: Box 4 Capital Information | AQ6: Provider Tax | AU6: FRV & ROE | AX6: Wage Increase | AZ6: Social Woker | BB6: Rate Prior to Phase-In
A7: Facility Name | B7: Region 1 | C7: Mgmt Company | D7: License Type | E7: Provider Number | F7: County | G7: Bed Capacity Last Day of Period | H7: Medicaid CT Days | I7: Total Care Days | J7: Actual and Imputed Resident Days | K7: Available Days | M7: Direct Care Costs | N7: Direct Care Inflated Costs | O7: Direct Care Per Diems | P7: Direct Care Normalizing CMI Adjusted Per Diems | Q7: Direct Care Limit | R7: Direct Care Allowed Per Diem | S7: Direct Care Efficiency as Percent of Median | T7: Direct Care Efficiency Adjustment | U7: Direct Care Medicaid CMI-Adjusted Per Diem | W7: Indirect Care Costs | X7: Indirect Care Inflated Costs | Y7: Indirect Care Per Diems | Z7: Indirect Care Limit/Price | AA7: Indirect Care Allowed Per Diem | AB7: Indirect Care Efficiency Adjustment | AC7: Indirect Care Allowed Per Diem with Efficiency Adjustment | AE7: A&G Costs | AF7: A&G Inflated Costs | AG7: A&G Per Diems | AH7: A&G Limit/Price | AI7: A&G Allowed Per Diem | AJ7: A&G Efficiency Adjustment | AK7: A&G Allowed Per Diem with Efficiency Adjustment | AM7: Capital Costs | AN7: Capital Inflated Costs | AO7: Capital Per Diems | AQ7: Provider Tax | AR7: Provider Tax Inflated Costs | AS7: Provider Tax Per Diems | AU7: FRV | AV7: Inflated ROE | AX7: Wage Increase | AZ7: Social Worker Minimum Staffing Rate Increase | BB7: Total NF Per Diem Reimbursement Rate Prior to BAF and Rate Phase-In (Inclusive of Wage Increase)
A8: =IFERROR(INDEX('9.30.19 Costs Original'!A$8:A$9,MATCH($E8,'9.30.19 Costs Original'!$F$8:$F$9,0)),"") -> Example Provider # 1 | B8: =IF(D8="","",IF('Options and Impact'!$C$39='Data Validation'!$A$41,IF(AND(F8="Fairfield County",D8="Nurs Fac-RHNS"),Medians!$D$6,IF(AND(F8<>"Fairfield County",D8="Nurs Fac-RHNS"),Medians!$D$7,IF(F8="Fairfield County",Medians!$D$4,Medians!$D$5))),IF(F8="Fairfield County",Medians!$D$4,Medians!$D$5))) -> 2 - CCNH Non-Fairfield | C8: =IFERROR(INDEX('9.30.19 Costs Original'!E$8:E$9&"",MATCH($E8,'9.30.19 Costs Original'!$F$8:$F$9,0)),"") ->  | D8: =IFERROR(INDEX('9.30.19 Costs Original'!C$8:C$9&"",MATCH($E8,'9.30.19 Costs Original'!$F$8:$F$9,0)),"") -> Nurs Fac-CCH | E8: 1 | F8: =IFERROR(INDEX('9.30.19 Costs Original'!G$8:G$9&"",MATCH($E8,'9.30.19 Costs Original'!$F$8:$F$9,0)),"") -> Non-Fairfield County | G8: =IFERROR(INDEX('9.30.19 Costs Annualized'!J$8:J$9,MATCH($E8,'9.30.19 Costs Annualized'!$F$8:$F$9,0)),"") -> 57 | H8: =IF(E8<>"",IFERROR(INDEX('9.30.19 Costs Annualized'!L$8:L$9,MATCH($E8,'9.30.19 Costs Annualized'!$F$8:$F$9,0)),""),"") -> 11716 | I8: =IF(E8<>"",IFERROR(INDEX('9.30.19 Costs Annualized'!Q$8:Q$9,MATCH($E8,'9.30.19 Costs Annualized'!$F$8:$F$9,0)),""),"") -> 20331 | J8: =IF(E8<>"",IFERROR(INDEX('9.30.19 Costs Annualized'!T$8:T$9,MATCH($E8,'9.30.19 Costs Annualized'!$F$8:$F$9,0)),""),"") -> 20331 | K8: =IFERROR(IF(INDEX('9.30.19 Costs Original'!$CR$8:$CR$9,(MATCH(E8,'9.30.19 Costs Original'!$F$8:$F$9,0)))>0,INDEX('9.30.19 Costs Original'!$CR$8:$CR$9,(MATCH(E8,'9.30.19 Costs Original'!$F$8:$F$9,0))),G8*365),"") -> 20805 | M8: =IF(E8<>"",IFERROR(INDEX('9.30.19 Costs Annualized'!AB$8:AB$9,MATCH($E8,'9.30.19 Costs Annualized'!$F$8:$F$9,0)),""),"") -> 3001072 | N8: =IF(E8<>"",ROUND(M8*IF('Options and Impact'!$F$13='Data Validation'!$A$16,Inflation!$G$19,IF('Options and Impact'!$F$13='Data Validation'!$A$17,Inflation!$G$11,Inflation!$G$26)),0),"") -> 3167331 | O8: =IFERROR(ROUND(N8/MAX($I8,$K8*'Options and Impact'!$F$18),2),"") -> 155.79 | P8: =IFERROR(ROUND(O8/IF('Options and Impact'!$C$33='Data Validation'!$A$31,INDEX('Normalizing CMI'!$G$9:$G$10,MATCH(E8,'Normalizing CMI'!$A$9:$A$10,0)),INDEX('Normalizing CMI'!$J$9:$J$10,MATCH(E8,'Normalizing CMI'!$A$9:$A$10,0))),2),"") -> 138.37 | Q8: =IF(E8<>"",IF(Box_1_Pgroup='Data Validation'!$A$7,'Options and Impact'!$J$10,INDEX('Options and Impact'!$J$10:$J$14,MATCH(B8,'Options and Impact'!$H$10:$H$14,0))),"") -> 171.56 | R8: =IF(E8<>"",IF(P8<Q8,P8,Q8),"") -> 138.37 | S8: =IF(E8<>"",IF(Box_1_Pgroup='Data Validation'!$A$7,'Options and Impact'!$J$15,IF(B8='Options and Impact'!$H$11,'Options and Impact'!$J$16,IF(B8='Options and Impact'!$H$12,'Options and Impact'!$J$17,IF(B8='Options and Impact'!$H$13,'Options and Impact'!$J$18,'Options and Impact'!$J$19)))),"") -> 127.08 | T8: =IF(E8<>"",ROUND(IF(P8*INDEX('Medicaid CMI'!$BD$8:$BD$9,MATCH(E8,'Medicaid CMI'!$A$8:$A$9,0))<S8*INDEX('Medicaid CMI'!$BD$8:$BD$9,MATCH(E8,'Medicaid CMI'!$A$8:$A$9,0)),((S8*INDEX('Medicaid CMI'!$BD$8:$BD$9,MATCH(E8,'Medicaid CMI'!$A$8:$A$9,0)))-P8*INDEX('Medicaid CMI'!$BD$8:$BD$9,MATCH(E8,'Medicaid CMI'!$A$8:$A$9,0)))*Box_1_Incentive_Percentage,0),2),"") -> 0 | U8: =IF(E8<>"",IFERROR(ROUND(IFERROR(R8*INDEX('Medicaid CMI'!$BD$8:$BD$9,MATCH(E8,'Medicaid CMI'!$A$8:$A$9,0)),R8*INDEX('Medicaid CMI'!$BD$8:$BD$9,MATCH(E8,'Medicaid CMI'!$A$8:$A$9,0)))+T8,2),0),"") -> 146.2 | W8: =IF(E8<>"",IFERROR(INDEX('9.30.19 Costs Annualized'!AC$8:AC$9,MATCH($E8,'9.30.19 Costs Annualized'!$F$8:$F$9,0)),""),"") -> 1179924 | X8: =IF(E8<>"",IFERROR(ROUND(W8*IF('Options and Impact'!$F$25='Data Validation'!$A$16,Inflation!$G$19,IF('Options and Impact'!$F$25='Data Validation'!$A$17,Inflation!$G$11,Inflation!$G$26)),0),0),"") -> 1245292 | Y8: =IF(E8<>"",IFERROR(ROUND(X8/MAX($I8,$K8*'Options and Impact'!$F$30),2),0),"") -> 61.25 | Z8: =IF(E8<>"",'Options and Impact'!$J$22,"") -> 67.62 | AA8: =IF(E8<>"",IF(Y8<Z8,Y8,Z8),"") -> 61.25 | AB8: =IF(E8<>"",ROUND(IF(Y8<'Options and Impact'!$J$24,('Options and Impact'!$J$24-Y8)*'Options and Impact'!$F$29,0),2),"") -> 0 | AC8: =IF(E8<>"",AA8+AB8,"") -> 61.25 | AE8: =IF(E8<>"",IFERROR(INDEX('9.30.19 Costs Annualized'!AD$8:AD$9,MATCH($E8,'9.30.19 Costs Annualized'!$F$8:$F$9,0)),""),"") -> 968221 | AF8: =IF(E8<>"",ROUND(AE8*IF('Options and Impact'!$F$37='Data Validation'!$A$16,Inflation!$G$19,IF('Options and Impact'!$F$37='Data Validation'!$A$17,Inflation!$G$11,Inflation!$G$26)),0),"") -> 1021860 | AG8: =IF(E8<>"",IFERROR(ROUND(AF8/MAX($I8,$K8*'Options and Impact'!$F$42),2),0),"") -> 50.26 | AH8: =IF(E8<>"",'Options and Impact'!$J$34,"") -> 36.82 | AI8: =IF(E8<>"",IF('Options and Impact'!$F$34="Price Based",AH8,IF(AG8>AH8,AH8,AG8)),"") -> 36.82 | AJ8: =IF(E8<>"",IF(AG8<'Options and Impact'!$J$36,('Options and Impact'!$J$36-AG8)*'Options and Impact'!$F$41,0),"") -> 0 | AK8: =IF(E8<>"",IF(Box_3_type_of_system='Data Validation'!$A$14,AI8,AI8+AJ8),"") -> 36.82 | AM8: =IF(E8<>"",IFERROR(INDEX('9.30.19 Costs Annualized'!AE$8:AE$9,MATCH($E8,'9.30.19 Costs Annualized'!$F$8:$F$9,0))-INDEX('9.30.19 Costs Annualized'!AS$8:AS$9,MATCH($E8,'9.30.19 Costs Annualized'!$F$8:$F$9,0)),0),"") -> 194195 | AN8: =IF(E8<>"",ROUND(AM8*IF('Options and Impact'!$F$50='Data Validation'!$A$16,Inflation!$G$19,IF('Options and Impact'!$F$50='Data Validation'!$A$17,Inflation!$G$11,Inflation!$G$26)),0),"") -> 204953 | AO8: =IF(E8<>"",IFERROR(ROUND(AN8/MAX($I8,$K8*'Options and Impact'!$F$54),2),0),"") -> 10.08 | AQ8: =IF(E8<>"",IFERROR(INDEX('9.30.19 Costs Annualized'!AS$8:AS$9,MATCH($E8,'9.30.19 Costs Annualized'!$F$8:$F$9,0)),0),"") -> 334575 | AR8: =IF(E8<>"",IFERROR(ROUND(AQ8*IF('Options and Impact'!$F$50='Data Validation'!$B$16,Inflation!$G$19,IF('Options and Impact'!$F$50='Data Validation'!$A$17,Inflation!$G$26,Inflation!$G$11)),0),0),"") -> 353110 | AS8: =IF(E8<>"",IFERROR(ROUND(AR8/MAX($I8,$K8*'Options and Impact'!$F$54),2),0),"") -> 17.37 | AU8: =IF(E8<>"",IFERROR(INDEX('9.30.19 Costs Original'!$CJ$8:$CJ$9,MATCH(E8,'9.30.19 Costs Original'!$F$8:$F$9,0)),0),"") -> 10.90821897 | AV8: =IF(E8<>"",IFERROR(ROUND(INDEX('9.30.19 Costs Original'!$CK$8:$CK$9,MATCH(E8,'9.30.19 Costs Original'!$F$8:$F$9,0))*IF('Options and Impact'!$F$50='Data Validation'!$A$16,Inflation!$G$19,Inflation!$G$26),4),0),"") -> 1.0454 | AX8: =IF(E8<>"",IFERROR(INDEX('9.30.19 Costs Original'!$CG$8:$CG$9,MATCH(E8,'9.30.19 Costs Original'!$F$8:$F$9,0)),0),"") -> 20.19 | AZ8: =IF(E8<>"",IFERROR(INDEX('9.30.19 Costs Original'!$CH$8:$CH$9,MATCH(E8,'9.30.19 Costs Original'!$F$8:$F$9,0)),0),"") -> 0 | BB8: =IF(E8<>"",ROUND(U8+AC8+AK8+AO8+AU8+AV8+AX8+AZ8+AS8,2),"") -> 303.86
A9: =IFERROR(INDEX('9.30.19 Costs Original'!A$8:A$9,MATCH($E9,'9.30.19 Costs Original'!$F$8:$F$9,0)),"") -> Example Provider # 2 | B9: =IF(D9="","",IF('Options and Impact'!$C$39='Data Validation'!$A$41,IF(AND(F9="Fairfield County",D9="Nurs Fac-RHNS"),Medians!$D$6,IF(AND(F9<>"Fairfield County",D9="Nurs Fac-RHNS"),Medians!$D$7,IF(F9="Fairfield County",Medians!$D$4,Medians!$D$5))),IF(F9="Fairfield County",Medians!$D$4,Medians!$D$5))) -> 2 - CCNH Fairfield County | C9: =IFERROR(INDEX('9.30.19 Costs Original'!E$8:E$9&"",MATCH($E9,'9.30.19 Costs Original'!$F$8:$F$9,0)),"") ->  | D9: =IFERROR(INDEX('9.30.19 Costs Original'!C$8:C$9&"",MATCH($E9,'9.30.19 Costs Original'!$F$8:$F$9,0)),"") -> Nurs Fac-CCH | E9: 2 | F9: =IFERROR(INDEX('9.30.19 Costs Original'!G$8:G$9&"",MATCH($E9,'9.30.19 Costs Original'!$F$8:$F$9,0)),"") -> Fairfield County | G9: =IFERROR(INDEX('9.30.19 Costs Annualized'!J$8:J$9,MATCH($E9,'9.30.19 Costs Annualized'!$F$8:$F$9,0)),"") -> 135 | H9: =IF(E9<>"",IFERROR(INDEX('9.30.19 Costs Annualized'!L$8:L$9,MATCH($E9,'9.30.19 Costs Annualized'!$F$8:$F$9,0)),""),"") -> 41556 | I9: =IF(E9<>"",IFERROR(INDEX('9.30.19 Costs Annualized'!Q$8:Q$9,MATCH($E9,'9.30.19 Costs Annualized'!$F$8:$F$9,0)),""),"") -> 46927 | J9: =IF(E9<>"",IFERROR(INDEX('9.30.19 Costs Annualized'!T$8:T$9,MATCH($E9,'9.30.19 Costs Annualized'!$F$8:$F$9,0)),""),"") -> 46936 | K9: =IFERROR(IF(INDEX('9.30.19 Costs Original'!$CR$8:$CR$9,(MATCH(E9,'9.30.19 Costs Original'!$F$8:$F$9,0)))>0,INDEX('9.30.19 Costs Original'!$CR$8:$CR$9,(MATCH(E9,'9.30.19 Costs Original'!$F$8:$F$9,0))),G9*365),"") -> 49275 | M9: =IF(E9<>"",IFERROR(INDEX('9.30.19 Costs Annualized'!AB$8:AB$9,MATCH($E9,'9.30.19 Costs Annualized'!$F$8:$F$9,0)),""),"") -> 5024368 | N9: =IF(E9<>"",ROUND(M9*IF('Options and Impact'!$F$13='Data Validation'!$A$16,Inflation!$G$19,IF('Options and Impact'!$F$13='Data Validation'!$A$17,Inflation!$G$11,Inflation!$G$26)),0),"") -> 5302718 | O9: =IFERROR(ROUND(N9/MAX($I9,$K9*'Options and Impact'!$F$18),2),"") -> 113 | P9: =IFERROR(ROUND(O9/IF('Options and Impact'!$C$33='Data Validation'!$A$31,INDEX('Normalizing CMI'!$G$9:$G$10,MATCH(E9,'Normalizing CMI'!$A$9:$A$10,0)),INDEX('Normalizing CMI'!$J$9:$J$10,MATCH(E9,'Normalizing CMI'!$A$9:$A$10,0))),2),"") -> 123.65 | Q9: =IF(E9<>"",IF(Box_1_Pgroup='Data Validation'!$A$7,'Options and Impact'!$J$10,INDEX('Options and Impact'!$J$10:$J$14,MATCH(B9,'Options and Impact'!$H$10:$H$14,0))),"") -> 190.8 | R9: =IF(E9<>"",IF(P9<Q9,P9,Q9),"") -> 123.65 | S9: =IF(E9<>"",IF(Box_1_Pgroup='Data Validation'!$A$7,'Options and Impact'!$J$15,IF(B9='Options and Impact'!$H$11,'Options and Impact'!$J$16,IF(B9='Options and Impact'!$H$12,'Options and Impact'!$J$17,IF(B9='Options and Impact'!$H$13,'Options and Impact'!$J$18,'Options and Impact'!$J$19)))),"") -> 141.33 | T9: =IF(E9<>"",ROUND(IF(P9*INDEX('Medicaid CMI'!$BD$8:$BD$9,MATCH(E9,'Medicaid CMI'!$A$8:$A$9,0))<S9*INDEX('Medicaid CMI'!$BD$8:$BD$9,MATCH(E9,'Medicaid CMI'!$A$8:$A$9,0)),((S9*INDEX('Medicaid CMI'!$BD$8:$BD$9,MATCH(E9,'Medicaid CMI'!$A$8:$A$9,0)))-P9*INDEX('Medicaid CMI'!$BD$8:$BD$9,MATCH(E9,'Medicaid CMI'!$A$8:$A$9,0)))*Box_1_Incentive_Percentage,0),2),"") -> 0 | U9: =IF(E9<>"",IFERROR(ROUND(IFERROR(R9*INDEX('Medicaid CMI'!$BD$8:$BD$9,MATCH(E9,'Medicaid CMI'!$A$8:$A$9,0)),R9*INDEX('Medicaid CMI'!$BD$8:$BD$9,MATCH(E9,'Medicaid CMI'!$A$8:$A$9,0)))+T9,2),0),"") -> 120 | W9: =IF(E9<>"",IFERROR(INDEX('9.30.19 Costs Annualized'!AC$8:AC$9,MATCH($E9,'9.30.19 Costs Annualized'!$F$8:$F$9,0)),""),"") -> 2200663 | X9: =IF(E9<>"",IFERROR(ROUND(W9*IF('Options and Impact'!$F$25='Data Validation'!$A$16,Inflation!$G$19,IF('Options and Impact'!$F$25='Data Validation'!$A$17,Inflation!$G$11,Inflation!$G$26)),0),0),"") -> 2322580 | Y9: =IF(E9<>"",IFERROR(ROUND(X9/MAX($I9,$K9*'Options and Impact'!$F$30),2),0),"") -> 49.49 | Z9: =IF(E9<>"",'Options and Impact'!$J$22,"") -> 67.62 | AA9: =IF(E9<>"",IF(Y9<Z9,Y9,Z9),"") -> 49.49 | AB9: =IF(E9<>"",ROUND(IF(Y9<'Options and Impact'!$J$24,('Options and Impact'!$J$24-Y9)*'Options and Impact'!$F$29,0),2),"") -> 2.33 | AC9: =IF(E9<>"",AA9+AB9,"") -> 51.82 | AE9: =IF(E9<>"",IFERROR(INDEX('9.30.19 Costs Annualized'!AD$8:AD$9,MATCH($E9,'9.30.19 Costs Annualized'!$F$8:$F$9,0)),""),"") -> 1500787 | AF9: =IF(E9<>"",ROUND(AE9*IF('Options and Impact'!$F$37='Data Validation'!$A$16,Inflation!$G$19,IF('Options and Impact'!$F$37='Data Validation'!$A$17,Inflation!$G$11,Inflation!$G$26)),0),"") -> 1583931 | AG9: =IF(E9<>"",IFERROR(ROUND(AF9/MAX($I9,$K9*'Options and Impact'!$F$42),2),0),"") -> 33.75 | AH9: =IF(E9<>"",'Options and Impact'!$J$34,"") -> 36.82 | AI9: =IF(E9<>"",IF('Options and Impact'!$F$34="Price Based",AH9,IF(AG9>AH9,AH9,AG9)),"") -> 33.75 | AJ9: =IF(E9<>"",IF(AG9<'Options and Impact'!$J$36,('Options and Impact'!$J$36-AG9)*'Options and Impact'!$F$41,0),"") -> 0.7675 | AK9: =IF(E9<>"",IF(Box_3_type_of_system='Data Validation'!$A$14,AI9,AI9+AJ9),"") -> 34.5175 | AM9: =IF(E9<>"",IFERROR(INDEX('9.30.19 Costs Annualized'!AE$8:AE$9,MATCH($E9,'9.30.19 Costs Annualized'!$F$8:$F$9,0))-INDEX('9.30.19 Costs Annualized'!AS$8:AS$9,MATCH($E9,'9.30.19 Costs Annualized'!$F$8:$F$9,0)),0),"") -> 313698 | AN9: =IF(E9<>"",ROUND(AM9*IF('Options and Impact'!$F$50='Data Validation'!$A$16,Inflation!$G$19,IF('Options and Impact'!$F$50='Data Validation'!$A$17,Inflation!$G$11,Inflation!$G$26)),0),"") -> 331077 | AO9: =IF(E9<>"",IFERROR(ROUND(AN9/MAX($I9,$K9*'Options and Impact'!$F$54),2),0),"") -> 7.06 | AQ9: =IF(E9<>"",IFERROR(INDEX('9.30.19 Costs Annualized'!AS$8:AS$9,MATCH($E9,'9.30.19 Costs Annualized'!$F$8:$F$9,0)),0),"") -> 914937 | AR9: =IF(E9<>"",IFERROR(ROUND(AQ9*IF('Options and Impact'!$F$50='Data Validation'!$B$16,Inflation!$G$19,IF('Options and Impact'!$F$50='Data Validation'!$A$17,Inflation!$G$26,Inflation!$G$11)),0),0),"") -> 965625 | AS9: =IF(E9<>"",IFERROR(ROUND(AR9/MAX($I9,$K9*'Options and Impact'!$F$54),2),0),"") -> 20.58 | AU9: =IF(E9<>"",IFERROR(INDEX('9.30.19 Costs Original'!$CJ$8:$CJ$9,MATCH(E9,'9.30.19 Costs Original'!$F$8:$F$9,0)),0),"") -> 3.8821 | AV9: =IF(E9<>"",IFERROR(ROUND(INDEX('9.30.19 Costs Original'!$CK$8:$CK$9,MATCH(E9,'9.30.19 Costs Original'!$F$8:$F$9,0))*IF('Options and Impact'!$F$50='Data Validation'!$A$16,Inflation!$G$19,Inflation!$G$26),4),0),"") -> 0.2919 | AX9: =IF(E9<>"",IFERROR(INDEX('9.30.19 Costs Original'!$CG$8:$CG$9,MATCH(E9,'9.30.19 Costs Original'!$F$8:$F$9,0)),0),"") -> 20.34 | AZ9: =IF(E9<>"",IFERROR(INDEX('9.30.19 Costs Original'!$CH$8:$CH$9,MATCH(E9,'9.30.19 Costs Original'!$F$8:$F$9,0)),0),"") -> 0 | BB9: =IF(E9<>"",ROUND(U9+AC9+AK9+AO9+AU9+AV9+AX9+AZ9+AS9,2),"") -> 258.49

Sheet Medians
B1: Non-Fairfield
A2: Connecticut Department of Social Services | D2: Medians | E2: Box 1 - Direct Care | F2: Box 2 - Indirect Care | G2: Box 3 - A&G | H2: Box 4 - Capital
A3: Median Calculation | B3: Hartford County | D3: 1 - All Facilities | E3: 130.16 | F3: 58.8 | G3: 36.82 | H3: 6.99
B4: New London County | C4: Fairfield County | D4: 2 - CCNH Fairfield County | E4: 141.33
B5: Middlesex County | D5: 2 - CCNH Non-Fairfield | E5: 127.08
B6: Windham County | D6: 3 - RHNS Fairfield County | E6: N/A
B7: Litchfield County | D7: 3 - RHNS Non-Fairfield | E7: N/A
B8: Tolland County

Sheet 9.30.19 Costs Annualized
F1: 1 | G1: 2 | H1: 3 | I1: 4 | J1: 5 | K1: 6 | L1: 7 | M1: 8 | N1: 9 | O1: 10 | P1: 11 | Q1: 12 | R1: 13 | S1: 14 | T1: 15 | U1: 16 | V1: 17 | W1: 18 | X1: 19 | Y1: 20 | Z1: 21 | AA1: 22 | AB1: 23 | AC1: 24 | AD1: 25 | AE1: 26 | AF1: 27 | AG1: 28 | AH1: 29 | AI1: 30 | AJ1: 31 | AK1: 32 | AL1: 33 | AM1: 34 | AN1: 35 | AO1: 36 | AP1: 37 | AQ1: 38 | AR1: 39 | AS1: 40 | AT1: 41 | AU1: 42 | AV1: 43 | AW1: 44 | AX1: 45 | AY1: 46 | AZ1: 47 | BA1: 48 | BB1: 49 | BC1: 50 | BD1: 51 | BE1: 52 | BF1: 53 | BG1: 54 | BH1: 55 | BI1: 56 | BJ1: 57 | BK1: 58 | BL1: 59 | BM1: 60 | BN1: 61 | BO1: 62 | BP1: 63 | BQ1: 64 | BR1: 65 | BS1: 66 | BT1: 67 | BU1: 68 | BV1: 69 | BW1: 70 | BX1: 71 | BY1: 72 | BZ1: 73
A3: Connecticut Department of Social Services
A4: 9/30/19 Annualized Cost Information | AM4: Options/Impact Response: | AO4: ='Options and Impact'!C12 -> 0 | AR4: ='Options and Impact'!C13 -> 0 | AZ4: ='Options and Impact'!C22 -> 0 | BA4: ='Options and Impact'!C23 -> 0 | BB4: ='Options and Impact'!C24 -> 0 | BC4: ='Options and Impact'!C25 -> 0 | BM4: ='Options and Impact'!C16 -> 0 | BT4: ='Options and Impact'!C19 -> 0 | BW4: ='Options and Impact'!C17 -> 0 | BX4: ='Options and Impact'!C18 -> 0 | BY4: =IF('Options and Impact'!C28='Data Validation'!A26,3,IF('Options and Impact'!C28='Data Validation'!A27,4,'Options and Impact'!C28)) -> 0 | BZ4: =IF('Options and Impact'!C29='Data Validation'!A26,3,IF('Options and Impact'!C29='Data Validation'!A27,4,'Options and Impact'!C29)) -> 0
A5: Note: Please do not sort this tab.
A6: General Provider Information | V6: Cost Information | AI6: Rates | AM6: Management Fees | AZ6: Insurance | BL6: Common Cost Report Adjustments
A7: Facility Name | B7: Ownership Type | C7: License Type | E7: Management Company | F7: Provider Number | G7: County | H7: Cost Report Start | I7: Cost Report End | J7: Bed Capacity Last Day of Period | K7: Medicare Days | L7: Medicaid CT Days | M7: Medicaid Other States | N7: Private Pay | O7: State SSI | P7: Other Resident Days | Q7: Total Care Days | R7: Medicaid Bed Reserve Days | S7: Other Bed Reserve Days | T7: Actual and Imputed Resident Days | U7: Actual Occupancy | V7: Total Direct Costs not Considering Options | W7: Total Indirect Costs not Considering Options | X7: Total A&G Costs not Considering Options | Y7: Total Capital Costs | Z7: Total Costs (RCR, New2) | AA7: Return on Equity | AB7: Total Direct Costs | AC7: Total Indirect Costs | AD7: Total A&G Costs | AE7: Total Capital/Other Costs | AF7: Total Costs | AG7: Difference | AI7: Calculated Rate | AJ7: Issued Rate | AM7: Management Fees Direct | AN7: Management Fees Direct Adjustment | AO7: Management Fee Direct Net of Adjustment | AP7: Management Fees Indirect | AQ7: Management Fees Indirect Adjustment | AR7: Management Fee Indirect Net of Adjustment | AS7: Resident Day User Fee | AT7: Equipment Lease | AU7: Movable Equipment Depreciation | AV7: Real Estate Taxes Paid By Owner | AW7: Real Estate Taxes Paid By Lessor | AX7: Personal Property Taxes | AY7: Building Insurance | AZ7: Automobile Insurance | BA7: Umbrella Insurance | BB7: Fire and Extended Coverage Insurance | BC7: Other Insurance | BD7: Total Insurance Excluding AnG | BE7: Capital Expense/Movable Equipment Adjustments | BF7: Depreciation on Unallowable Motor Vehicles Adjustment | BG7: Unallowable Property and Real Estate Taxes | BH7: Rental of Building Space or Rooms | BI7: Mortgage Insurance Adjustment | BJ7: Property Insurance Adjustment | BL7: Cell Phone Expense | BM7: Cell Phone Adjustment | BN7: Corporation Business Tax | BO7: Income Tax/Corporate Business Tax Adjustment | BP7: Holiday Parties for Staff | BQ7: Gifts to Staff and Residents | BR7: Gifts, Flowers, and coffee Shop Adjustment | BS7: Management Fees | BT7: Unallowable Management Fees | BV7: Dues and Membership Fees | BW7: Professional Dues Disallowed | BX7: Total Managerial Admin Comp Disallowed | BY7: Total Moveable Equipment Interest | BZ7: Other Interest Expense | CA7: Interest Income on Accounts Receivable Adjustment | CB7: Building Depreciation and Interest Adjustment
A8: =IFERROR(INDEX('9.30.19 Costs Original'!A$8:A$9&"",MATCH($F8,'9.30.19 Costs Original'!$F$8:$F$9,0)),"") -> Example Provider # 1 | B8: =IFERROR(INDEX('9.30.19 Costs Original'!B$8:B$9&"",MATCH($F8,'9.30.19 Costs Original'!$F$8:$F$9,0)),"") -> Profit | C8: =IFERROR(INDEX('9.30.19 Costs Original'!C$8:C$9&"",MATCH($F8,'9.30.19 Costs Original'!$F$8:$F$9,0)),"") -> Nurs Fac-CCH | D8: =IFERROR(IF(INDEX('9.30.19 Costs Original'!$D$8:$D$9,MATCH(F8,'9.30.19 Costs Original'!$F$8:$F$9,0))=0,"",(INDEX('9.30.19 Costs Original'!$D$8:$D$9,MATCH(F8,'9.30.19 Costs Original'!$F$8:$F$9,0)))),"") ->  | E8: =IFERROR(INDEX('9.30.19 Costs Original'!E$8:E$9&"",MATCH($F8,'9.30.19 Costs Original'!$F$8:$F$9,0)),"") ->  | F8: 1 | G8: =IFERROR(INDEX('9.30.19 Costs Original'!G$8:G$9&"",MATCH($F8,'9.30.19 Costs Original'!$F$8:$F$9,0)),"") -> Non-Fairfield County | H8: =IFERROR(INDEX('9.30.19 Costs Original'!H$8:H$9,MATCH($F8,'9.30.19 Costs Original'!$F$8:$F$9,0)),"") -> 2018-10-01 | I8: =IFERROR(INDEX('9.30.19 Costs Original'!I$8:I$9,MATCH($F8,'9.30.19 Costs Original'!$F$8:$F$9,0)),"") -> 2019-09-30 | J8: =IFERROR(INDEX('9.30.19 Costs Original'!J$8:J$9,MATCH($F8,'9.30.19 Costs Original'!$F$8:$F$9,0)),"") -> 57 | K8: =IFERROR(ROUND((INDEX('9.30.19 Costs Original'!K$8:K$9,MATCH($F8,'9.30.19 Costs Original'!$F$8:$F$9,0))/($I8-$H8+1))*365,0),"") -> 3279 | L8: =IFERROR(ROUND((INDEX('9.30.19 Costs Original'!L$8:L$9,MATCH($F8,'9.30.19 Costs Original'!$F$8:$F$9,0))/($I8-$H8+1))*365,0),"") -> 11716 | M8: =IFERROR(ROUND((INDEX('9.30.19 Costs Original'!M$8:M$9,MATCH($F8,'9.30.19 Costs Original'!$F$8:$F$9,0))/($I8-$H8+1))*365,0),"") -> 0 | N8: =IFERROR(ROUND((INDEX('9.30.19 Costs Original'!N$8:N$9,MATCH($F8,'9.30.19 Costs Original'!$F$8:$F$9,0))/($I8-$H8+1))*365,0),"") -> 4192 | O8: =IFERROR(ROUND((INDEX('9.30.19 Costs Original'!O$8:O$9,MATCH($F8,'9.30.19 Costs Original'!$F$8:$F$9,0))/($I8-$H8+1))*365,0),"") -> 0 | P8: =IFERROR(ROUND((INDEX('9.30.19 Costs Original'!P$8:P$9,MATCH($F8,'9.30.19 Costs Original'!$F$8:$F$9,0))/($I8-$H8+1))*365,0),"") -> 1144 | Q8: =IFERROR(ROUND((INDEX('9.30.19 Costs Original'!Q$8:Q$9,MATCH($F8,'9.30.19 Costs Original'!$F$8:$F$9,0))/($I8-$H8+1))*365,0),"") -> 20331 | R8: =IFERROR(ROUND((INDEX('9.30.19 Costs Original'!R$8:R$9,MATCH($F8,'9.30.19 Costs Original'!$F$8:$F$9,0))/($I8-$H8+1))*365,0),"") -> 0 | S8: =IFERROR(ROUND((INDEX('9.30.19 Costs Original'!S$8:S$9,MATCH($F8,'9.30.19 Costs Original'!$F$8:$F$9,0))/($I8-$H8+1))*365,0),"") -> 0 | T8: =IFERROR(ROUND((INDEX('9.30.19 Costs Original'!T$8:T$9,MATCH($F8,'9.30.19 Costs Original'!$F$8:$F$9,0))/($I8-$H8+1))*365,0),"") -> 20331 | U8: =IFERROR(ROUND(INDEX('9.30.19 Costs Original'!U$8:U$9,MATCH($F8,'9.30.19 Costs Original'!$F$8:$F$9,0)),4),"") -> 0.9772 | V8: =IFERROR(ROUND((INDEX('9.30.19 Costs Original'!V$8:V$9,MATCH($F8,'9.30.19 Costs Original'!$F$8:$F$9,0))/($I8-$H8+1))*365,0),"") -> 3001072 | W8: =IFERROR(ROUND((INDEX('9.30.19 Costs Original'!W$8:W$9,MATCH($F8,'9.30.19 Costs Original'!$F$8:$F$9,0))/($I8-$H8+1))*365,0),"") -> 1179924 | X8: =IFERROR(ROUND((INDEX('9.30.19 Costs Original'!X$8:X$9,MATCH($F8,'9.30.19 Costs Original'!$F$8:$F$9,0))/($I8-$H8+1))*365,0),"") -> 968221 | Y8: =IFERROR(ROUND((INDEX('9.30.19 Costs Original'!Y$8:Y$9,MATCH($F8,'9.30.19 Costs Original'!$F$8:$F$9,0))/($I8-$H8+1))*365,0),"") -> 528770 | Z8: =IFERROR(ROUND((INDEX('9.30.19 Costs Original'!Z$8:Z$9,MATCH($F8,'9.30.19 Costs Original'!$F$8:$F$9,0))/($I8-$H8+1))*365,0),"") -> 5677987 | AA8: =IFERROR(ROUND((INDEX('9.30.19 Costs Original'!AA$8:AA$9,MATCH($F8,'9.30.19 Costs Original'!$F$8:$F$9,0))/($I8-$H8+1))*365,0),"") -> 20139 | AB8: =IFERROR(V8+IF($AO$4="No",0,-AO8),"") -> 3001072 | AC8: =IFERROR(W8+IF($AR$4="No",0,-AR8),"") -> 1179924 | AD8: =IFERROR(X8+IF($AR$4="Yes",AR8,0)+IF($AO$4="Yes",AO8,0)-IF($BM$4="No",BM8,0)+IF($AZ$4="Yes",AZ8,0)+IF($BA$4="Yes",BA8,0)+IF($BB$4="Yes",BB8,0)+IF($BC$4="Yes",BC8,0)-IF($BW$4="No",BW8,0)-IF($BX$4="No",BX8,0)-IF($BT$4="No",BT8,0)+IF($BY$4=3,BY8,0)+IF($BZ$4=3,BZ8,0),"") -> 968221 | AE8: =IFERROR(Y8-IF($AZ$4="Yes",AZ8,0)-IF($BA$4="Yes",BA8,0)-IF($BB$4="Yes",BB8,0)-IF($BC$4="Yes",BC8,0)+IF($BY$4=4,BY8,0)+IF(B8="Profit",IF($BZ$4=4,BZ8,0),IF($BZ$4=3,0,BZ8))+CA8,"") -> 528770 | AF8: =IFERROR(SUM(AB8:AE8),"") -> 5677987 | AG8: =IFERROR(Z8-AF8,"") -> 0 | AI8: =IFERROR(ROUND(INDEX('9.30.19 Costs Original'!$AI$8:$AI$9,MATCH($F8,'9.30.19 Costs Original'!$F$8:$F$9,0)),2),"") -> 300 | AJ8: =IFERROR(ROUND(INDEX('9.30.19 Costs Original'!$AJ$8:$AJ$9,MATCH($F8,'9.30.19 Costs Original'!$F$8:$F$9,0)),2),"") -> 290 | AM8: =IFERROR(ROUND((INDEX('9.30.19 Costs Original'!AM$8:AM$9,MATCH($F8,'9.30.19 Costs Original'!$F$8:$F$9,0))/($I8-$H8+1))*365,0),"") -> 0 | AN8: =IFERROR(ROUND((INDEX('9.30.19 Costs Original'!AN$8:AN$9,MATCH($F8,'9.30.19 Costs Original'!$F$8:$F$9,0))/($I8-$H8+1))*365,0),"") -> 0 | AO8: =IFERROR(AM8+AN8,"") -> 0 | AP8: =IFERROR(ROUND((INDEX('9.30.19 Costs Original'!AP$8:AP$9,MATCH($F8,'9.30.19 Costs Original'!$F$8:$F$9,0))/($I8-$H8+1))*365,0),"") -> 0 | AQ8: =IFERROR(ROUND((INDEX('9.30.19 Costs Original'!AQ$8:AQ$9,MATCH($F8,'9.30.19 Costs Original'!$F$8:$F$9,0))/($I8-$H8+1))*365,0),"") -> 0 | AR8: =IFERROR(AP8+AQ8,"") -> 0 | AS8: =IFERROR(ROUND((INDEX('9.30.19 Costs Original'!AS$8:AS$9,MATCH($F8,'9.30.19 Costs Original'!$F$8:$F$9,0))/($I8-$H8+1))*365,0),"") -> 334575 | AT8: =ROUND((VLOOKUP($F8,'9.30.19 Costs Original'!$F$7:$CB$9,AT$5,FALSE)/($I8-$H8+1))*365,0) ->  | AU8: =ROUND((VLOOKUP($F8,'9.30.19 Costs Original'!$F$7:$CB$9,AU$5,FALSE)/($I8-$H8+1))*365,0) ->  | AV8: =ROUND((VLOOKUP($F8,'9.30.19 Costs Original'!$F$7:$CB$9,AV$5,FALSE)/($I8-$H8+1))*365,0) ->  | AW8: =ROUND((VLOOKUP($F8,'9.30.19 Costs Original'!$F$7:$CB$9,AW$5,FALSE)/($I8-$H8+1))*365,0) ->  | AX8: =ROUND((VLOOKUP($F8,'9.30.19 Costs Original'!$F$7:$CB$9,AX$5,FALSE)/($I8-$H8+1))*365,0) ->  | AY8: =ROUND((VLOOKUP($F8,'9.30.19 Costs Original'!$F$7:$CB$9,AY$5,FALSE)/($I8-$H8+1))*365,0) ->  | AZ8: =IFERROR(ROUND((INDEX('9.30.19 Costs Original'!AZ$8:AZ$9,MATCH($F8,'9.30.19 Costs Original'!$F$8:$F$9,0))/($I8-$H8+1))*365,0),"") -> 0 | BA8: =IFERROR(ROUND((INDEX('9.30.19 Costs Original'!BA$8:BA$9,MATCH($F8,'9.30.19 Costs Original'!$F$8:$F$9,0))/($I8-$H8+1))*365,0),"") -> 0 | BB8: =IFERROR(ROUND((INDEX('9.30.19 Costs Original'!BB$8:BB$9,MATCH($F8,'9.30.19 Costs Original'!$F$8:$F$9,0))/($I8-$H8+1))*365,0),"") -> 31970 | BC8: =IFERROR(ROUND((INDEX('9.30.19 Costs Original'!BC$8:BC$9,MATCH($F8,'9.30.19 Costs Original'!$F$8:$F$9,0))/($I8-$H8+1))*365,0),"") -> 22486 | BD8: =ROUND((VLOOKUP($F8,'9.30.19 Costs Original'!$F$7:$CB$9,BD$5,FALSE)/($I8-$H8+1))*365,0) ->  | BE8: =ROUND((VLOOKUP($F8,'9.30.19 Costs Original'!$F$7:$CB$9,BE$5,FALSE)/($I8-$H8+1))*365,0) ->  | BF8: =ROUND((VLOOKUP($F8,'9.30.19 Costs Original'!$F$7:$CB$9,BF$5,FALSE)/($I8-$H8+1))*365,0) ->  | BG8: =ROUND((VLOOKUP($F8,'9.30.19 Costs Original'!$F$7:$CB$9,BG$5,FALSE)/($I8-$H8+1))*365,0) ->  | BH8: =ROUND((VLOOKUP($F8,'9.30.19 Costs Original'!$F$7:$CB$9,BH$5,FALSE)/($I8-$H8+1))*365,0) ->  | BI8: =ROUND((VLOOKUP($F8,'9.30.19 Costs Original'!$F$7:$CB$9,BI$5,FALSE)/($I8-$H8+1))*365,0) ->  | BJ8: =ROUND((VLOOKUP($F8,'9.30.19 Costs Original'!$F$7:$CB$9,BJ$5,FALSE)/($I8-$H8+1))*365,0) ->  | BL8: =IFERROR(ROUND((INDEX('9.30.19 Costs Original'!BL$8:BL$9,MATCH($F8,'9.30.19 Costs Original'!$F$8:$F$9,0))/($I8-$H8+1))*365,0),"") -> 1721 | BM8: =IFERROR(ROUND((INDEX('9.30.19 Costs Original'!BM$8:BM$9,MATCH($F8,'9.30.19 Costs Original'!$F$8:$F$9,0))/($I8-$H8+1))*365,0),"") -> -641 | BN8: =ROUND((VLOOKUP($F8,'9.30.19 Costs Original'!$F$7:$CB$9,BN$5,FALSE)/($I8-$H8+1))*365,0) ->  | BO8: =ROUND((VLOOKUP($F8,'9.30.19 Costs Original'!$F$7:$CB$9,BO$5,FALSE)/($I8-$H8+1))*365,0) ->  | BP8: =ROUND((VLOOKUP($F8,'9.30.19 Costs Original'!$F$7:$CB$9,BP$5,FALSE)/($I8-$H8+1))*365,0) ->  | BQ8: =ROUND((VLOOKUP($F8,'9.30.19 Costs Original'!$F$7:$CB$9,BQ$5,FALSE)/($I8-$H8+1))*365,0) ->  | BR8: =ROUND((VLOOKUP($F8,'9.30.19 Costs Original'!$F$7:$CB$9,BR$5,FALSE)/($I8-$H8+1))*365,0) ->  | BS8: =ROUND((VLOOKUP($F8,'9.30.19 Costs Original'!$F$7:$CB$9,BS$5,FALSE)/($I8-$H8+1))*365,0) ->  | BT8: =IFERROR(ROUND((INDEX('9.30.19 Costs Original'!BT$8:BT$9,MATCH($F8,'9.30.19 Costs Original'!$F$8:$F$9,0))/($I8-$H8+1))*365,0),"") -> 0 | BV8: =IFERROR(ROUND((INDEX('9.30.19 Costs Original'!BV$8:BV$9,MATCH($F8,'9.30.19 Costs Original'!$F$8:$F$9,0))/($I8-$H8+1))*365,0),"") -> 4879 | BW8: =IFERROR(ROUND((INDEX('9.30.19 Costs Original'!BW$8:BW$9,MATCH($F8,'9.30.19 Costs Original'!$F$8:$F$9,0))/($I8-$H8+1))*365,0),"") -> -2382 | BX8: =IFERROR(ROUND((INDEX('9.30.19 Costs Original'!BX$8:BX$9,MATCH($F8,'9.30.19 Costs Original'!$F$8:$F$9,0))/($I8-$H8+1))*365,0),"") -> -126805 | BY8: =IFERROR(ROUND((INDEX('9.30.19 Costs Original'!BY$8:BY$9,MATCH($F8,'9.30.19 Costs Original'!$F$8:$F$9,0))/($I8-$H8+1))*365,0),"") -> 0 | BZ8: =IFERROR(ROUND((INDEX('9.30.19 Costs Original'!BZ$8:BZ$9,MATCH($F8,'9.30.19 Costs Original'!$F$8:$F$9,0))/($I8-$H8+1))*365,0),"") -> 25088 | CA8: =IFERROR(ROUND((INDEX('9.30.19 Costs Original'!CA$8:CA$9,MATCH($F8,'9.30.19 Costs Original'!$F$8:$F$9,0))/($I8-$H8+1))*365,0),"") -> 0 | CB8: =IFERROR(ROUND((INDEX('9.30.19 Costs Original'!CB$8:CB$9,MATCH($F8,'9.30.19 Costs Original'!$F$8:$F$9,0))/($I8-$H8+1))*365,0),"") -> 0
A9: =IFERROR(INDEX('9.30.19 Costs Original'!A$8:A$9&"",MATCH($F9,'9.30.19 Costs Original'!$F$8:$F$9,0)),"") -> Example Provider # 2 | B9: =IFERROR(INDEX('9.30.19 Costs Original'!B$8:B$9&"",MATCH($F9,'9.30.19 Costs Original'!$F$8:$F$9,0)),"") -> Profit | C9: =IFERROR(INDEX('9.30.19 Costs Original'!C$8:C$9&"",MATCH($F9,'9.30.19 Costs Original'!$F$8:$F$9,0)),"") -> Nurs Fac-CCH | D9: =IFERROR(IF(INDEX('9.30.19 Costs Original'!$D$8:$D$9,MATCH(F9,'9.30.19 Costs Original'!$F$8:$F$9,0))=0,"",(INDEX('9.30.19 Costs Original'!$D$8:$D$9,MATCH(F9,'9.30.19 Costs Original'!$F$8:$F$9,0)))),"") ->  | F9: 2 | G9: =IFERROR(INDEX('9.30.19 Costs Original'!G$8:G$9&"",MATCH($F9,'9.30.19 Costs Original'!$F$8:$F$9,0)),"") -> Fairfield County | H9: =IFERROR(INDEX('9.30.19 Costs Original'!H$8:H$9,MATCH($F9,'9.30.19 Costs Original'!$F$8:$F$9,0)),"") -> 2018-10-01 | I9: =IFERROR(INDEX('9.30.19 Costs Original'!I$8:I$9,MATCH($F9,'9.30.19 Costs Original'!$F$8:$F$9,0)),"") -> 2019-09-30 | J9: =IFERROR(INDEX('9.30.19 Costs Original'!J$8:J$9,MATCH($F9,'9.30.19 Costs Original'!$F$8:$F$9,0)),"") -> 135 | K9: =IFERROR(ROUND((INDEX('9.30.19 Costs Original'!K$8:K$9,MATCH($F9,'9.30.19 Costs Original'!$F$8:$F$9,0))/($I9-$H9+1))*365,0),"") -> 2189 | L9: =IFERROR(ROUND((INDEX('9.30.19 Costs Original'!L$8:L$9,MATCH($F9,'9.30.19 Costs Original'!$F$8:$F$9,0))/($I9-$H9+1))*365,0),"") -> 41556 | M9: =IFERROR(ROUND((INDEX('9.30.19 Costs Original'!M$8:M$9,MATCH($F9,'9.30.19 Costs Original'!$F$8:$F$9,0))/($I9-$H9+1))*365,0),"") -> 0 | N9: =IFERROR(ROUND((INDEX('9.30.19 Costs Original'!N$8:N$9,MATCH($F9,'9.30.19 Costs Original'!$F$8:$F$9,0))/($I9-$H9+1))*365,0),"") -> 1911 | O9: =IFERROR(ROUND((INDEX('9.30.19 Costs Original'!O$8:O$9,MATCH($F9,'9.30.19 Costs Original'!$F$8:$F$9,0))/($I9-$H9+1))*365,0),"") -> 0 | P9: =IFERROR(ROUND((INDEX('9.30.19 Costs Original'!P$8:P$9,MATCH($F9,'9.30.19 Costs Original'!$F$8:$F$9,0))/($I9-$H9+1))*365,0),"") -> 1271 | Q9: =IFERROR(ROUND((INDEX('9.30.19 Costs Original'!Q$8:Q$9,MATCH($F9,'9.30.19 Costs Original'!$F$8:$F$9,0))/($I9-$H9+1))*365,0),"") -> 46927 | R9: =IFERROR(ROUND((INDEX('9.30.19 Costs Original'!R$8:R$9,MATCH($F9,'9.30.19 Costs Original'!$F$8:$F$9,0))/($I9-$H9+1))*365,0),"") -> 5 | S9: =IFERROR(ROUND((INDEX('9.30.19 Costs Original'!S$8:S$9,MATCH($F9,'9.30.19 Costs Original'!$F$8:$F$9,0))/($I9-$H9+1))*365,0),"") -> 4 | T9: =IFERROR(ROUND((INDEX('9.30.19 Costs Original'!T$8:T$9,MATCH($F9,'9.30.19 Costs Original'!$F$8:$F$9,0))/($I9-$H9+1))*365,0),"") -> 46936 | U9: =IFERROR(ROUND(INDEX('9.30.19 Costs Original'!U$8:U$9,MATCH($F9,'9.30.19 Costs Original'!$F$8:$F$9,0)),4),"") -> 0.9523 | V9: =IFERROR(ROUND((INDEX('9.30.19 Costs Original'!V$8:V$9,MATCH($F9,'9.30.19 Costs Original'!$F$8:$F$9,0))/($I9-$H9+1))*365,0),"") -> 5024368 | W9: =IFERROR(ROUND((INDEX('9.30.19 Costs Original'!W$8:W$9,MATCH($F9,'9.30.19 Costs Original'!$F$8:$F$9,0))/($I9-$H9+1))*365,0),"") -> 2200663 | X9: =IFERROR(ROUND((INDEX('9.30.19 Costs Original'!X$8:X$9,MATCH($F9,'9.30.19 Costs Original'!$F$8:$F$9,0))/($I9-$H9+1))*365,0),"") -> 1500787 | Y9: =IFERROR(ROUND((INDEX('9.30.19 Costs Original'!Y$8:Y$9,MATCH($F9,'9.30.19 Costs Original'!$F$8:$F$9,0))/($I9-$H9+1))*365,0),"") -> 1228635 | Z9: =IFERROR(ROUND((INDEX('9.30.19 Costs Original'!Z$8:Z$9,MATCH($F9,'9.30.19 Costs Original'!$F$8:$F$9,0))/($I9-$H9+1))*365,0),"") -> 9954454 | AA9: =IFERROR(ROUND((INDEX('9.30.19 Costs Original'!AA$8:AA$9,MATCH($F9,'9.30.19 Costs Original'!$F$8:$F$9,0))/($I9-$H9+1))*365,0),"") -> 12982 | AB9: =IFERROR(V9+IF($AO$4="No",0,-AO9),"") -> 5024368 | AC9: =IFERROR(W9+IF($AR$4="No",0,-AR9),"") -> 2200663 | AD9: =IFERROR(X9+IF($AR$4="Yes",AR9,0)+IF($AO$4="Yes",AO9,0)-IF($BM$4="No",BM9,0)+IF($AZ$4="Yes",AZ9,0)+IF($BA$4="Yes",BA9,0)+IF($BB$4="Yes",BB9,0)+IF($BC$4="Yes",BC9,0)-IF($BW$4="No",BW9,0)-IF($BX$4="No",BX9,0)-IF($BT$4="No",BT9,0)+IF($BY$4=3,BY9,0)+IF($BZ$4=3,BZ9,0),"") -> 1500787 | AE9: =IFERROR(Y9-IF($AZ$4="Yes",AZ9,0)-IF($BA$4="Yes",BA9,0)-IF($BB$4="Yes",BB9,0)-IF($BC$4="Yes",BC9,0)+IF($BY$4=4,BY9,0)+IF(B9="Profit",IF($BZ$4=4,BZ9,0),IF($BZ$4=3,0,BZ9))+CA9,"") -> 1228635 | AF9: =IFERROR(SUM(AB9:AE9),"") -> 9954453 | AG9: =IFERROR(Z9-AF9,"") -> 1 | AI9: =IFERROR(ROUND(INDEX('9.30.19 Costs Original'!$AI$8:$AI$9,MATCH($F9,'9.30.19 Costs Original'!$F$8:$F$9,0)),2),"") -> 250 | AJ9: =IFERROR(ROUND(INDEX('9.30.19 Costs Original'!$AJ$8:$AJ$9,MATCH($F9,'9.30.19 Costs Original'!$F$8:$F$9,0)),2),"") -> 270 | AM9: =IFERROR(ROUND((INDEX('9.30.19 Costs Original'!AM$8:AM$9,MATCH($F9,'9.30.19 Costs Original'!$F$8:$F$9,0))/($I9-$H9+1))*365,0),"") -> 0 | AN9: =IFERROR(ROUND((INDEX('9.30.19 Costs Original'!AN$8:AN$9,MATCH($F9,'9.30.19 Costs Original'!$F$8:$F$9,0))/($I9-$H9+1))*365,0),"") -> 0 | AO9: =IFERROR(AM9+AN9,"") -> 0 | AP9: =IFERROR(ROUND((INDEX('9.30.19 Costs Original'!AP$8:AP$9,MATCH($F9,'9.30.19 Costs Original'!$F$8:$F$9,0))/($I9-$H9+1))*365,0),"") -> 0 | AQ9: =IFERROR(ROUND((INDEX('9.30.19 Costs Original'!AQ$8:AQ$9,MATCH($F9,'9.30.19 Costs Original'!$F$8:$F$9,0))/($I9-$H9+1))*365,0),"") -> 0 | AR9: =IFERROR(AP9+AQ9,"") -> 0 | AS9: =IFERROR(ROUND((INDEX('9.30.19 Costs Original'!AS$8:AS$9,MATCH($F9,'9.30.19 Costs Original'!$F$8:$F$9,0))/($I9-$H9+1))*365,0),"") -> 914937 | AT9: =ROUND((VLOOKUP($F9,'9.30.19 Costs Original'!$F$7:$CB$9,AT$5,FALSE)/($I9-$H9+1))*365,0) ->  | AU9: =ROUND((VLOOKUP($F9,'9.30.19 Costs Original'!$F$7:$CB$9,AU$5,FALSE)/($I9-$H9+1))*365,0) ->  | AV9: =ROUND((VLOOKUP($F9,'9.30.19 Costs Original'!$F$7:$CB$9,AV$5,FALSE)/($I9-$H9+1))*365,0) ->  | AW9: =ROUND((VLOOKUP($F9,'9.30.19 Costs Original'!$F$7:$CB$9,AW$5,FALSE)/($I9-$H9+1))*365,0) ->  | AX9: =ROUND((VLOOKUP($F9,'9.30.19 Costs Original'!$F$7:$CB$9,AX$5,FALSE)/($I9-$H9+1))*365,0) ->  | AY9: =ROUND((VLOOKUP($F9,'9.30.19 Costs Original'!$F$7:$CB$9,AY$5,FALSE)/($I9-$H9+1))*365,0) ->  | AZ9: =IFERROR(ROUND((INDEX('9.30.19 Costs Original'!AZ$8:AZ$9,MATCH($F9,'9.30.19 Costs Original'!$F$8:$F$9,0))/($I9-$H9+1))*365,0),"") -> 0 | BA9: =IFERROR(ROUND((INDEX('9.30.19 Costs Original'!BA$8:BA$9,MATCH($F9,'9.30.19 Costs Original'!$F$8:$F$9,0))/($I9-$H9+1))*365,0),"") -> 105606 | BB9: =IFERROR(ROUND((INDEX('9.30.19 Costs Original'!BB$8:BB$9,MATCH($F9,'9.30.19 Costs Original'!$F$8:$F$9,0))/($I9-$H9+1))*365,0),"") -> 0 | BC9: =IFERROR(ROUND((INDEX('9.30.19 Costs Original'!BC$8:BC$9,MATCH($F9,'9.30.19 Costs Original'!$F$8:$F$9,0))/($I9-$H9+1))*365,0),"") -> 0 | BD9: =ROUND((VLOOKUP($F9,'9.30.19 Costs Original'!$F$7:$CB$9,BD$5,FALSE)/($I9-$H9+1))*365,0) ->  | BE9: =ROUND((VLOOKUP($F9,'9.30.19 Costs Original'!$F$7:$CB$9,BE$5,FALSE)/($I9-$H9+1))*365,0) ->  | BF9: =ROUND((VLOOKUP($F9,'9.30.19 Costs Original'!$F$7:$CB$9,BF$5,FALSE)/($I9-$H9+1))*365,0) ->  | BG9: =ROUND((VLOOKUP($F9,'9.30.19 Costs Original'!$F$7:$CB$9,BG$5,FALSE)/($I9-$H9+1))*365,0) ->  | BH9: =ROUND((VLOOKUP($F9,'9.30.19 Costs Original'!$F$7:$CB$9,BH$5,FALSE)/($I9-$H9+1))*365,0) ->  | BI9: =ROUND((VLOOKUP($F9,'9.30.19 Costs Original'!$F$7:$CB$9,BI$5,FALSE)/($I9-$H9+1))*365,0) ->  | BJ9: =ROUND((VLOOKUP($F9,'9.30.19 Costs Original'!$F$7:$CB$9,BJ$5,FALSE)/($I9-$H9+1))*365,0) ->  | BL9: =IFERROR(ROUND((INDEX('9.30.19 Costs Original'!BL$8:BL$9,MATCH($F9,'9.30.19 Costs Original'!$F$8:$F$9,0))/($I9-$H9+1))*365,0),"") -> 2714 | BM9: =IFERROR(ROUND((INDEX('9.30.19 Costs Original'!BM$8:BM$9,MATCH($F9,'9.30.19 Costs Original'!$F$8:$F$9,0))/($I9-$H9+1))*365,0),"") -> -1274 | BN9: =ROUND((VLOOKUP($F9,'9.30.19 Costs Original'!$F$7:$CB$9,BN$5,FALSE)/($I9-$H9+1))*365,0) ->  | BO9: =ROUND((VLOOKUP($F9,'9.30.19 Costs Original'!$F$7:$CB$9,BO$5,FALSE)/($I9-$H9+1))*365,0) ->  | BP9: =ROUND((VLOOKUP($F9,'9.30.19 Costs Original'!$F$7:$CB$9,BP$5,FALSE)/($I9-$H9+1))*365,0) ->  | BQ9: =ROUND((VLOOKUP($F9,'9.30.19 Costs Original'!$F$7:$CB$9,BQ$5,FALSE)/($I9-$H9+1))*365,0) ->  | BR9: =ROUND((VLOOKUP($F9,'9.30.19 Costs Original'!$F$7:$CB$9,BR$5,FALSE)/($I9-$H9+1))*365,0) ->  | BS9: =ROUND((VLOOKUP($F9,'9.30.19 Costs Original'!$F$7:$CB$9,BS$5,FALSE)/($I9-$H9+1))*365,0) ->  | BT9: =IFERROR(ROUND((INDEX('9.30.19 Costs Original'!BT$8:BT$9,MATCH($F9,'9.30.19 Costs Original'!$F$8:$F$9,0))/($I9-$H9+1))*365,0),"") -> -281609 | BV9: =IFERROR(ROUND((INDEX('9.30.19 Costs Original'!BV$8:BV$9,MATCH($F9,'9.30.19 Costs Original'!$F$8:$F$9,0))/($I9-$H9+1))*365,0),"") -> 15484 | BW9: =IFERROR(ROUND((INDEX('9.30.19 Costs Original'!BW$8:BW$9,MATCH($F9,'9.30.19 Costs Original'!$F$8:$F$9,0))/($I9-$H9+1))*365,0),"") -> -9616 | BX9: =IFERROR(ROUND((INDEX('9.30.19 Costs Original'!BX$8:BX$9,MATCH($F9,'9.30.19 Costs Original'!$F$8:$F$9,0))/($I9-$H9+1))*365,0),"") -> -13176 | BY9: =IFERROR(ROUND((INDEX('9.30.19 Costs Original'!BY$8:BY$9,MATCH($F9,'9.30.19 Costs Original'!$F$8:$F$9,0))/($I9-$H9+1))*365,0),"") -> 0 | BZ9: =IFERROR(ROUND((INDEX('9.30.19 Costs Original'!BZ$8:BZ$9,MATCH($F9,'9.30.19 Costs Original'!$F$8:$F$9,0))/($I9-$H9+1))*365,0),"") -> 0 | CA9: =IFERROR(ROUND((INDEX('9.30.19 Costs Original'!CA$8:CA$9,MATCH($F9,'9.30.19 Costs Original'!$F$8:$F$9,0))/($I9-$H9+1))*365,0),"") -> 0 | CB9: =IFERROR(ROUND((INDEX('9.30.19 Costs Original'!CB$8:CB$9,MATCH($F9,'9.30.19 Costs Original'!$F$8:$F$9,0))/($I9-$H9+1))*365,0),"") -> 0

Sheet 9.30.19 Costs Original
F1: 1 | G1: 2 | H1: 3 | I1: 4 | J1: 5 | K1: 6 | L1: 7 | M1: 8 | N1: 9 | O1: 10 | P1: 11 | Q1: 12 | R1: 13 | S1: 14 | T1: 15 | U1: 16 | V1: 17 | W1: 18 | X1: 19 | Y1: 20 | Z1: 21 | AA1: 22 | AB1: 23 | AC1: 24 | AD1: 25 | AE1: 26 | AF1: 27 | AG1: 28 | AH1: 29 | AI1: 30 | AJ1: 31 | AK1: 32 | AL1: 33 | AM1: 34 | AN1: 35 | AO1: 36 | AP1: 37 | AQ1: 38 | AR1: 39 | AS1: 40 | AT1: 41 | AU1: 42 | AV1: 43 | AW1: 44 | AX1: 45 | AY1: 46 | AZ1: 47 | BA1: 48 | BB1: 49 | BC1: 50 | BD1: 51 | BE1: 52 | BF1: 53 | BG1: 54 | BH1: 55 | BI1: 56 | BJ1: 57 | BK1: 58 | BL1: 59 | BM1: 60 | BN1: 61 | BO1: 62 | BP1: 63 | BQ1: 64 | BR1: 65 | BS1: 66 | BT1: 67 | BU1: 68 | BV1: 69 | BW1: 70 | BX1: 71 | BY1: 72 | BZ1: 73
A3: Connecticut Department of Social Services | J3: 6 | K3: 7 | L3: 8 | M3: 9 | N3: 10 | O3: 11 | P3: 12 | Q3: 13 | R3: 14 | S3: 15 | T3: 16 | V3: 18 | W3: 19 | X3: 20 | Y3: 21 | Z3: 22 | AA3: 23 | AI3: 24 | AJ3: 25 | AM3: 27 | AN3: 30 | AP3: 32 | AQ3: 35 | AS3: 37 | AZ3: 40 | BA3: 43 | BB3: 46 | BC3: 50 | BL3: 51 | BM3: 54 | BT3: 58 | BV3: 59 | BW3: 60 | BX3: 61 | BY3: 62 | BZ3: 63 | CA3: 64 | CB3: 66 | CD3: 74 | CE3: 76 | CJ3: 77 | CK3: 78 | CM3: 79
A4: 9/30/19 Cost Information | AM4: Options/Impact Response: | AO4: ='Options and Impact'!C12 -> 0 | AR4: ='Options and Impact'!C13 -> 0 | AZ4: ='Options and Impact'!C22 -> 0 | BA4: ='Options and Impact'!C23 -> 0 | BB4: ='Options and Impact'!C24 -> 0 | BC4: ='Options and Impact'!C25 -> 0 | BM4: ='Options and Impact'!C16 -> 0 | BT4: ='Options and Impact'!C19 -> 0 | BW4: ='Options and Impact'!C17 -> 0 | BX4: ='Options and Impact'!C18 -> 0 | BY4: =IF('Options and Impact'!C28='Data Validation'!A26,3,IF('Options and Impact'!C28='Data Validation'!A27,4,'Options and Impact'!C28)) -> 0 | BZ4: =IF('Options and Impact'!C29='Data Validation'!A26,3,IF('Options and Impact'!C29='Data Validation'!A27,4,'Options and Impact'!C29)) -> 0
A5: Note: Please do not sort this tab. | F5: 1 | G5: 2 | H5: 3 | I5: 4 | J5: 5 | K5: 6 | L5: 7 | M5: 8 | N5: 9 | O5: 10 | P5: 11 | Q5: 12 | R5: 13 | S5: 14 | T5: 15 | U5: 16 | V5: 17 | W5: 18 | X5: 19 | Y5: 20 | Z5: 21 | AA5: 22 | AB5: 23 | AC5: 24 | AD5: 25 | AE5: 26 | AF5: 27 | AG5: 28 | AH5: 29 | AI5: 30 | AJ5: 31 | AK5: 32 | AL5: 33 | AM5: 34 | AN5: 35 | AO5: 36 | AP5: 37 | AQ5: 38 | AR5: 39 | AS5: 40 | AT5: 41 | AU5: 42 | AV5: 43 | AW5: 44 | AX5: 45 | AY5: 46 | AZ5: 47 | BA5: 48 | BB5: 49 | BC5: 50 | BD5: 51 | BE5: 52 | BF5: 53 | BG5: 54 | BH5: 55 | BI5: 56 | BJ5: 57 | BK5: 58 | BL5: 59 | BM5: 60 | BN5: 61 | BO5: 62 | BP5: 63 | BQ5: 64 | BR5: 65 | BS5: 66 | BT5: 67 | BU5: 68 | BV5: 69 | BW5: 70 | BX5: 71 | BY5: 72 | BZ5: 73 | CA5: 74 | CB5: 75
A6: General Provider Information | V6: Cost Information | AI6: Rates | AM6: Management Fees | AZ6: Insurance | BL6: Common Cost Report Adjustments
A7: Facility Name | B7: Ownership Type | C7: License Type | E7: Management Company | F7: Provider Number | G7: County | H7: Cost Report Start | I7: Cost Report End | J7: Bed Capacity Last Day of Period | K7: Medicare Days | L7: Medicaid CT Days | M7: Medicaid Other States | N7: Private Pay | O7: State SSI | P7: Other Resident Days | Q7: Total Resident Days | R7: Medicaid Bed Reserve Days | S7: Other Bed Reserve Days | T7: Actual and Imputed Resident Days | U7: Actual Occupancy | V7: Total Direct Costs not Considering Options | W7: Total Indirect Costs not Considering Options | X7: Total A&G Costs not Considering Options | Y7: Total Capital Costs | Z7: Total Costs (RCR, New2) | AA7: Return on Equity | AB7: Total Direct Costs | AC7: Total Indirect Costs | AD7: Total A&G Costs | AE7: Total Capital/Other Costs | AF7: Total Costs | AG7: Difference | AI7: Calculated Rate | AJ7: Issued Rate | AM7: Management Fees Direct | AN7: Management Fees Direct Adjustment | AO7: Management Fee Direct Net of Adjustment | AP7: Management Fees Indirect | AQ7: Management Fees Indirect Adjustment | AR7: Management Fee Indirect Net of Adjustment | AS7: Resident Day User Fee | AT7: Equipment Lease | AU7: Movable Equipment Depreciation | AV7: Real Estate Taxes Paid By Owner | AW7: Real Estate Taxes Paid By Lessor | AX7: Personal Property Taxes | AY7: Building Insurance | AZ7: Automobile Insurance | BA7: Umbrella Insurance | BB7: Fire and Extended Coverage Insurance | BC7: Other Insurance | BD7: Total Insurance Excluding AnG | BE7: Capital Expense/Movable Equipment Adjustments | BF7: Depreciation on Unallowable Motor Vehicles Adjustment | BG7: Unallowable Property and Real Estate Taxes | BH7: Rental of Building Space or Rooms | BI7: Mortgage Insurance Adjustment | BJ7: Property Insurance Adjustment | BL7: Cell Phone Expense | BM7: Cell Phone Adjustment | BN7: Corporation Business Tax | BO7: Income Tax/Corporate Business Tax Adjustment | BP7: Holiday Parties for Staff | BQ7: Gifts to Staff and Residents | BR7: Gifts, Flowers, and coffee Shop Adjustment | BS7: Management Fees | BT7: Unallowable Management Fees | BV7: Dues and Membership Fees | BW7: Professional Dues Disallowed | BX7: Total Managerial Admin Comp Disallowed | BY7: Total Moveable Equipment Interest | BZ7: Other Interest Expense | CA7: Interest Income on Accounts Receivable Adjustment | CB7: Building Depreciation and Interest Adjustment | CD7: Depreciation/Amortization /Rent Expense | CE7: Building Interest Expense Net of Adjustment | CG7: Total Wage Add-ons for the Periods 7/1/2019 (pro-rated to 10/1/2019), 10/1/2020, 1/1/2021, and 7/1/2021 | CH7: Social Worker Minimum Staffing Rate Increase | CJ7: FRV | CK7: ROE | CM7: Direct Care Cost Disallowed | CO7: CMS Star Rating (Aug. 2021) | CP7: Long Stay QM (Aug. 2021) | CR7: Special Values - Available Days
A8: Example Provider # 1 | B8: Profit | C8: Nurs Fac-CCH | F8: 1 | G8: Non-Fairfield County | H8: 2018-10-01 | I8: 2019-09-30 | J8: 57 | K8: 3279 | L8: 11716 | M8: 0 | N8: 4192 | O8: 0 | P8: 1144 | Q8: 20331 | R8: 0 | S8: 0 | T8: 20331 | U8: =ROUND(Q8/(J8*(I8-H8+1)),4) -> 0.9772 | V8: 3001071.779 | W8: 1179924.093 | X8: 968221.495 | Y8: 528770 | Z8: 5677987.367 | AA8: 20139.11638 | AB8: =V8+IF($AO$4="No",0,-AO8) -> 3001071.779 | AC8: =W8+IF($AR$4="No",0,-AR8) -> 1179924.093 | AD8: =X8+IF($AR$4="Yes",AR8,0)+IF($AO$4="Yes",AO8,0)-IF($BM$4="No",BM8,0)+IF($AZ$4="Yes",AZ8,0)+IF($BA$4="Yes",BA8,0)+IF($BB$4="Yes",BB8,0)+IF($BC$4="Yes",BC8,0)-IF($BW$4="No",BW8,0)-IF($BX$4="No",BX8,0)-IF($BT$4="No",BT8,0)+IF($BY$4=3,BY8,0)+IF($BZ$4=3,BZ8,0) -> 968221.495 | AE8: =Y8-IF($AZ$4="Yes",AZ8,0)-IF($BA$4="Yes",BA8,0)-IF($BB$4="Yes",BB8,0)-IF($BC$4="Yes",BC8,0)+IF($BY$4=4,BY8,0)+IF(B8="Profit",IF($BZ$4=4,BZ8,0),IF($BZ$4=3,0,BZ8))+CA8 -> 528770 | AF8: =SUM(AB8:AE8) -> 5677987.367 | AG8: =Z8-AF8 -> 0 | AI8: 300 | AJ8: 290 | AM8: 0 | AN8: 0 | AO8: =SUM(AM8:AN8) -> 0 | AP8: 0 | AQ8: 0 | AR8: =SUM(AP8:AQ8) -> 0 | AS8: 334575 | AT8: 0 | AU8: 0 | AV8: 0 | AW8: 0 | AX8: 0 | AY8: 0 | AZ8: 0 | BA8: 0 | BB8: 31970 | BC8: 22486 | BD8: 0 | BE8: 0 | BF8: 0 | BG8: 0 | BH8: 0 | BI8: 0 | BJ8: 0 | BL8: 1721 | BM8: -641 | BN8: -641 | BO8: -641 | BP8: -641 | BQ8: -641 | BR8: -641 | BS8: -641 | BT8: 0 | BV8: 4879 | BW8: -2381.8 | BX8: -126805.4697 | BY8: 0 | BZ8: 25088 | CA8: 0 | CB8: 0 | CD8: 553367 | CE8: 0 | CG8: =INDEX('Wage Add-On 6-30-2021 and 2022'!$N$6:$N$7,MATCH($F8,'Wage Add-On 6-30-2021 and 2022'!$C$6:$C$7,0)) -> 20.19 | CJ8: 10.90821897 | CK8: 0.9905620176 | CM8: 0 | CO8: 4 | CP8: 5 | CR8: 0
A9: Example Provider # 2 | B9: Profit | C9: Nurs Fac-CCH | F9: 2 | G9: Fairfield County | H9: 2018-10-01 | I9: 2019-09-30 | J9: 135 | K9: 2189 | L9: 41556 | M9: 0 | N9: 1911 | O9: 0 | P9: 1271 | Q9: 46927 | R9: 5 | S9: 4 | T9: 46936 | U9: =ROUND(Q9/(J9*(I9-H9+1)),4) -> 0.9523 | V9: 5024368.258 | W9: 2200663.332 | X9: 1500787.337 | Y9: 1228635 | Z9: 9954453.926 | AA9: 12981.68882 | AB9: =V9+IF($AO$4="No",0,-AO9) -> 5024368.258 | AC9: =W9+IF($AR$4="No",0,-AR9) -> 2200663.332 | AD9: =X9+IF($AR$4="Yes",AR9,0)+IF($AO$4="Yes",AO9,0)-IF($BM$4="No",BM9,0)+IF($AZ$4="Yes",AZ9,0)+IF($BA$4="Yes",BA9,0)+IF($BB$4="Yes",BB9,0)+IF($BC$4="Yes",BC9,0)-IF($BW$4="No",BW9,0)-IF($BX$4="No",BX9,0)-IF($BT$4="No",BT9,0)+IF($BY$4=3,BY9,0)+IF($BZ$4=3,BZ9,0) -> 1500787.337 | AE9: =Y9-IF($AZ$4="Yes",AZ9,0)-IF($BA$4="Yes",BA9,0)-IF($BB$4="Yes",BB9,0)-IF($BC$4="Yes",BC9,0)+IF($BY$4=4,BY9,0)+IF(B9="Profit",IF($BZ$4=4,BZ9,0),IF($BZ$4=3,0,BZ9))+CA9 -> 1228635 | AF9: =SUM(AB9:AE9) -> 9954453.926 | AG9: =Z9-AF9 -> 5.960464478e-08 | AI9: 250 | AJ9: 270 | AM9: 0 | AN9: 0 | AO9: =SUM(AM9:AN9) -> 0 | AP9: 0 | AQ9: 0 | AR9: =SUM(AP9:AQ9) -> 0 | AS9: 914937 | AT9: 0 | AU9: 0 | AV9: 0 | AW9: 0 | AX9: 0 | AY9: 0 | AZ9: 0 | BA9: 105606 | BB9: 0 | BC9: 0 | BD9: 0 | BE9: 0 | BF9: 0 | BG9: 0 | BH9: 0 | BI9: 0 | BJ9: 0 | BL9: 2714 | BM9: -1274 | BN9: -1274 | BO9: -1274 | BP9: -1274 | BQ9: -1274 | BR9: -1274 | BS9: -1274 | BT9: -281609 | BV9: 15484 | BW9: -9615.58 | BX9: -13176.49357 | BY9: 0 | BZ9: 0 | CA9: 0 | CB9: 0 | CD9: 1541542 | CE9: 0 | CG9: =INDEX('Wage Add-On 6-30-2021 and 2022'!$N$6:$N$7,MATCH($F9,'Wage Add-On 6-30-2021 and 2022'!$C$6:$C$7,0)) -> 20.34 | CJ9: 3.8821 | CK9: 0.2765827686 | CM9: 0 | CO9: 4 | CP9: 2 | CR9: 0

Sheet Wage Add-On 6-30-2021 and 2022
A1: Schedule of Nursing Facility Rate Increases
A2: Data as of March 15, 2022
A5: Provider Name | B5: Provider Number | C5: Provider Number | D5: Provider Type | E5: 7/1/2019 Wage Increase | G5: 7/1/2019 Wage Increase Prorated | H5: 7/1/2020 Rate | I5: 10/1/2020 Wage Increase 1% | J5: 10/1/2020 Rate | K5: 1/1/2021 Wage Increase 1% | L5: 1/1/2021 Rate Excluding CRF | M5: 7/1/2021 Wage Increase 4.5% | N5: Total Wage Add-on at 7/1/2021 | O5: CY 2020 Fair Rent Add-On | Q5: Social Worker Add-On Effective 1/1/2022
A6: Example Provider # 1 | B6: 1 | C6: 1 | D6: CCNH | E6: 4.9 | G6: =ROUND(E6*9/12,2) -> 3.68 | H6: 250.12 | I6: =ROUND(H6*0.01,2) -> 2.5 | J6: =H6+I6 -> 252.62 | K6: =ROUND(J6*0.01,2) -> 2.53 | L6: =J6+K6 -> 255.15 | M6: =ROUND(L6*0.045,2) -> 11.48 | N6: =G6+I6+K6+M6 -> 20.19 | O6: 0
A7: Example Provider # 2 | B7: 2 | C7: 2 | D7: CCNH | E7: 4.93 | G7: =ROUND(E7*9/12,2) -> 3.7 | H7: 251.99 | I7: =ROUND(H7*0.01,2) -> 2.52 | J7: =H7+I7 -> 254.51 | K7: =ROUND(J7*0.01,2) -> 2.55 | L7: =J7+K7 -> 257.06 | M7: =ROUND(L7*0.045,2) -> 11.57 | N7: =G7+I7+K7+M7 -> 20.34 | O7: 0.04

Sheet Medicaid CR Crosswalk
A2: Connecticut Department of Social Services
A3: Medicaid Cost Report Crosswalk
A6: Direct Care Expenses | C6: Indirect Expenses | E6: Administrative and General Expenses | G6: Capital Expenses | I6: Fringes* | K6: Non-Reimbursable
B7: Salaries | D7: Salaries | E7: 10/A1 | F7: Owners and Operators | H7: Capital | J7: Daycare Workers | K7: 10/A9 | L7: Barber and Beautician Services
A8: 10/A12A | B8: Director and Assistant Director of Nurses | C8: 10/A5A | D8: Head Dietician | E8: 10/A2 | F8: Administrators | G8: 15/1K3 | H8: Resident Day User Fee | I8: 15/1A1 | J8: Workmen's compensation | K8: 10/A12G | L8: Occupational Therapy
A9: 10/A12B1 | B9: RN - Direct Care | C9: 10/A5B | D9: Food Service Supervisor | E9: 10/A3 | F9: Assistant Administrators | G9: 20/6E | H9: Equipment Lease | I9: 15/1A2 | J9: Disability insurance | K9: 10/A12I3 | L9: Resident Care Physicians Salaries
A10: 10/A12B2 | B10: RN - Administrative | C10: 10/A5C | D10: Dietary Workers | E10: 10/A4 | F10: Other Administrative Salaries | G10: 22/7D | H10: Movable equipment Depreciation | I10: 15/1A3 | J10: Unemployment insurance | K10: 13/B8C | L10: Resident Care Physicians Fees
A11: 10/A12C1 | B11: LPN - Direct Care | C11: 10/A6A | D11: Head Housekeeper | E11: 10/A7A | F11: Engineer or Chief of Maintenance | G11: 22/10A | H11: Real estate taxes paid by owner | I11: 15/1A4 | J11: Social security (FICA) | K11: 13/B10A | L11: Resident Care Occupational Therapists
A12: 10/A12C2 | B12: LPN - Administrative | C12: 10/A6B | D12: Other Housekeeping Workers | E12: 10/A7B | F12: Other Maintenance Workers | G12: 22/10B | H12: Real estate taxes paid by lessor | I12: 15/1A5 | J12: Health Insurance | K12: 13/B10B | L12: Other Occupational Therapists
A13: 10/A12D | B13: Aides and Attendants | C13: 10/A8A | D13: Laundry Supervisor | E13: 10/A10 | F13: Protective Services | G13: 22/10C | H13: Personal property taxes | I13: 15/1A6 | J13: Life insurance | K13: 15/1B | L13: Owner's Pension and Profit-Sharing Plans
C14: 10/A8B | D14: Other Laundry Workers | E14: 10/A11A | F14: Head Accountant | G14: 27/14A | H14: Buildings Insurance | I14: 15/1A7 | J14: Employee pensions | K14: 15/1C | L14: Bad Debts
B15: Fees | C15: 10/A12E | D15: Physical Therapists | E15: 10/A11B | F15: Other Accountants | G15: 27/14B | H15: Automobile Insurance | I15: 15/1A8 | J15: Uniform allowances | K15: 15/1F | L15: Insurance on Lives of Owners
A16: 13/B11A1 | B16: RN - Direct Care | C16: 10/A12F | D16: Speech Therapists | E16: 15/1D | F16: Accounting and auditing | G16: 27/14C1 | H16: Umbrella Insurance | I16: 15/1A9 | J16: Other employee health and welfare | K16: 15/1I | L16: Appraisals
A17: 13/B11A2 | B17: RN - Administrative | C17: 10/A12H | D17: Recreation Workers | E17: 15/1E | F17: Legal | G17: 27/14C2 | H17: Fire and extended coverage Insurance | K17: 15/1K1 | L17: Income Taxes
A18: 13/B11B1 | B18: LPN - Direct Care | C18: 10/A12I1 | D18: Medical Director | E18: 15/1G | F18: Office supplies | G18: 27/14C3 | H18: Other Insurance | K18: 16/M2 | L18: Telephone Directory Advertising
A19: 13/B11B2 | B19: LPN - Administrative | C19: 10/A12I2 | D19: Utilization Review | E19: 15/1H1 | F19: Telephone | K19: 16/M3 | L19: Other Advertising
A20: 13/B11C | B20: Aides and Attendants | C20: 10/A12I4 | D20: Other Physicians | E20: 15/1H2 | F20: Cellular Phone | K20: 16/M4 | L20: Fund raising
A21: 13/B11D | B21: Other Nurses and Aides and Attendants | C21: 10/A12J | D21: Dentist | E21: 15/1J | F21: Corporation business taxes | H21: Interest and Depreciation Replaced by Fair Rent | K21: 16/M6 | L21: Barber and Beauty Supplies
B22: Nursing Pool Costs | C22: 10/A12K | D22: Pharmacists | E22: 15/1K2 | F22: Other taxes not related to property | G22: 22/7A | H22: Land improvements Depreciation | K22: 16/M8a | L22: Dues to Chamber of Commerce
A23: 20/5J | B23: Management Fees Direct | C23: 10/A12L | D23: Podiatrist | E23: 16/L1 | F23: Resident travel and entertainment | G23: 22/7B | H23: Buildings and building improvements Depreciation | K23: 16/M10 | L23: Contributions
C24: 10/A12M | D24: Social Workers/Case Management | E24: 16/L2 | F24: Holiday parties for staff | G24: 22/7C | H24: Non-movable equipment Depreciation | K24: 20/5A1 | L24: Own pharmacy prescription drugs
C25: 10/A12O | D25: Other Salaries | E25: 16/L3 | F25: Gifts to staff and residents | G25: 22/8B | H25: Mortgage expense | K25: 20/5A2 | L25: Purchased prescription drugs
D26: Fees | E26: 16/L4 | F26: Employee travel | G26: 22/8C | H26: Leasehold Improvements Amortization | K26: 20/5D | L26: Ambulances and limousines
C27: 13/B1 | D27: Dietitians | E27: 16/L5 | F27: Education expense | G27: 22/8D | H27: Other Amortization | K27: 20/5e2 | L27: Other oxygen
C28: 13/B2 | D28: Dentists | E28: 16/L6 | F28: Automobile expense | G28: 22/9 | H28: Rental of real property less real estate taxes | K28: 20/5f | L28: X-rays and radiological procedures
C29: 13/B3 | D29: Pharmacists | E29: 16/L7 | F29: Other travel and entertainment | G29: 26/12B7 | H29: Building and non-movable equipment Interest | K29: 20/5h | L29: Laboratory
C30: 13/B4 | D30: Podiatrists | E30: 16/M1 | F30: Help wanted advertising | G30: 27/12C1 | H30: Automobile equipment interest expense
C31: 13/B5A | D31: Resident Care Physical Therapists | E31: 16/M5 | F31: Medical records | G31: 27/12C2 | H31: Movable equipment interest expense
C32: 13/B5B | D32: Other Physical Therapists | E32: 16/M7 | F32: Postage | G32: 27/12D | H32: Other interest expense
C33: 13/B6 | D33: Social Workers | E33: 16/M8 | F33: Dues and membership fees
C34: 13/B7 | D34: Recreation Workers | E34: 16/M9 | F34: Subscriptions
C35: 13/B8A | D35: Medical Director | E35: 16/M11 | F35: Services provided by contract
C36: 13/B8B | D36: Utilization Review Physicians | E36: 16/M12 | F36: Administrative management services
C37: 13/B8D1 | D37: Infection Control Committee | E37: 16/M13 | F37: Other administrative and general expense
C38: 13/B8D2 | D38: Pharmaceutical Committee | E38: 22/6A | F38: Repair and maintenance
C39: 13/B8D3 | D39: Staff Development Committee | E39: 22/6B | F39: Heat
C40: 13/B8E | D40: Other Physicians | E40: 22/6C | F40: Light and Power
C41: 13/B9A | D41: Resident Care Speech Therapists | E41: 22/6D | F41: Water
C42: 13/B9B | D42: Other Speech Therapists | E42: 20/6F | F42: Other Maintenance and Operation of Plant Expense
C43: 13/B12 | D43: Other Fees | E43: 22/8A | F43: Organization Expense
C45: 18/2D | D45: Non Salary Dietary Expense
C46: 19/3D | D46: Non Salary Laundry Expense
C47: 20/4D | D47: Non Salary Housekeeping Expense
C48: 20/5B | D48: Medicine cabinet drugs
C49: 20/5C | D49: Medical and therapeutic supplies
C50: 20/5E1 | D50: Emergency use oxygen
C51: 20/5G | D51: Dental supplies
C52: 20/5I | D52: Recreation Supplies
C53: 20/5K | D53: Management Fees Indirect
C54: 20/5L | D54: Other resident care expenses
A57: * Fringes: Fringes are allocated on the basis of salaries to all rate components.

Sheet Inflation
A2: Connecticut Department of Social Services
A3: Inflation
A5: Inflation Information:
B6: 2020 Fourth Quarter Healthcare Cost Review
B7: Table 6.7 CMS Nursing Home Without Capital Market Basket (FFY)
C8: Begin | D8: End | E8: Mid | F8: Quarter
B9: Cost Reports: | C9: 2018-10-01 | D9: 2019-09-30 | E9: 2019-03-31 | F9: 2019:1 | G9: 1.124
B10: Rates: | C10: 2021-07-01 | D10: 2022-06-30 | E10: 2021-12-31 | F10: 2021:4 | G10: 1.195
B11: Inflation: | G11: =ROUND(+G10/G9,4) -> 1.0632
B14: 2020 Fourth Quarter Healthcare Cost Review
B15: Table 7 CPI All Items Northeast (CY)
C16: Begin | D16: End | E16: Mid | F16: Quarter
B17: Cost Reports: | C17: 2018-10-01 | D17: 2019-09-30 | E17: 2019-03-31 | F17: 2019:1 | G17: 267.3
B18: Rates: | C18: 2021-07-01 | D18: 2022-06-30 | E18: 2021-12-31 | F18: 2021:4 | G18: 282.1
B19: Inflation: | G19: =ROUND(+G18/G17,4) -> 1.0554
B21: RSMeans
B22: Construction Cost Indexes with RSMeans Data
B24: January 2019 Connecticut Weighted Average | G24: 244.41
B25: January 2021 Connecticut Weighted Average | G25: 257.74
B26: Inflation: | G26: =ROUND(+G25/G24,4) -> 1.0545

Sheet Medicaid CMI
A2: Connecticut Department of Social Services
A3: Medicaid CMI Calculations
A5: 1 | B5: 2 | C5: 3 | D5: 4 | E5: 5 | F5: 6 | G5: 7
D6: Preliminary Q1 2020 | I6: Final Q1 2020 | N6: Final Q2 2020 | S6: Final Q3 2020 | X6: Final Q4 2020 | AC6: Final Q1 2021 | AH6: Prelim Q2 2021 | AM6: Final Q3 2021 | AR6: Final Q4 2021
A7: Medicaid Number | B7: CMS Facility Internal ID | C7: Provider Name | D7: Medicaid Residents | E7: Medicaid Points | F7: Medicaid Days | G7: Medicaid Avg CMI | I7: Medicaid Residents | J7: Medicaid Points | K7: Medicaid Days | L7: Medicaid Avg CMI | N7: Medicaid Residents | O7: Medicaid Points | P7: Medicaid Days | Q7: Medicaid Avg CMI | S7: Medicaid Residents | T7: Medicaid Points | U7: Medicaid Days | V7: Medicaid Avg CMI | X7: Medicaid Residents | Y7: Medicaid Points | Z7: Medicaid Days | AA7: Medicaid Avg CMI | AC7: Medicaid Residents | AD7: Medicaid Points | AE7: Medicaid Days | AF7: Medicaid Avg CMI | AH7: Medicaid Residents | AI7: Medicaid Points | AJ7: Medicaid Days | AK7: Medicaid Avg CMI | AM7: Medicaid Residents | AN7: Medicaid Points | AO7: Medicaid Days | AP7: Medicaid Avg CMI | AR7: Medicaid Residents | AS7: Medicaid Points | AT7: Medicaid Days | AU7: Medicaid Avg CMI | BB7: Provider Attributes | BD7: CMI By Quarter Selection | BF7: CMI Rank
A8: 1 | B8: 1 | C8: Example Provider # 1 | D8: 46 | E8: 3492.1 | F8: 3192 | G8: 1.094016291 | I8: 46 | J8: 3499.6 | K8: 3192 | L8: 1.096365915 | N8: 40 | O8: 3263.27 | P8: 3011 | Q8: 1.083782796 | S8: 49 | T8: 3497.68 | U8: 3221 | V8: 1.085898789 | X8: 40 | Y8: 3067.76 | Z8: 2842 | AA8: 1.0794 | AC8: 40 | AD8: 3010.26 | AE8: 2681 | AF8: 1.1228 | AH8: 41 | AI8: 3032.92 | AJ8: 2766 | AK8: 1.0965 | AM8: 41 | AN8: 3023.73 | AO8: 2808 | AP8: 1.0768 | AR8: 38 | AS8: 2346.74 | AT8: 2221 | AU8: 1.0566 | BD8: =IF('Options and Impact'!$C$35='Data Validation'!$A$54,'Medicaid CMI'!$L8,IF('Options and Impact'!$C$35='Data Validation'!$A$55,'Medicaid CMI'!$Q8,IF('Options and Impact'!$C$35='Data Validation'!$A$56,'Medicaid CMI'!$V8,IF('Options and Impact'!$C$35='Data Validation'!$A$57,'Medicaid CMI'!$AA8,IF('Options and Impact'!$C$35='Data Validation'!$A$58,'Medicaid CMI'!$AF8,IF('Options and Impact'!$C$35='Data Validation'!$A$59,'Medicaid CMI'!$AK8,IF('Options and Impact'!$C$35='Data Validation'!$A$60,$AP8,IF('Options and Impact'!$C$35='Data Validation'!$A$61,$AU8,)))))))) -> 1.0566 | BF8: =RANK(BD8,$BD$8:$BD$9) -> 1
A9: 2 | B9: 2 | C9: Example Provider # 2 | D9: 142 | E9: 9577.47 | F9: 10432 | G9: 0.9180856979 | I9: 140 | J9: 9503.52 | K9: 10421 | L9: 0.9119585452 | N9: 119 | O9: 6698.06 | P9: 6586 | Q9: 1.01701488 | S9: 97 | T9: 7393.4 | U9: 6877 | V9: 1.075090883 | X9: 113 | Y9: 7813.84 | Z9: 7837 | AA9: 0.997 | AC9: 110 | AD9: 7212.11 | AE9: 7363 | AF9: 0.9795 | AH9: 116 | AI9: 8302.05 | AJ9: 8384 | AK9: 0.9902 | AM9: 121 | AN9: 8510.82 | AO9: 8830 | AP9: 0.9639 | AR9: 126 | AS9: 8548.73 | AT9: 8809 | AU9: 0.9705 | BD9: =IF('Options and Impact'!$C$35='Data Validation'!$A$54,'Medicaid CMI'!$L9,IF('Options and Impact'!$C$35='Data Validation'!$A$55,'Medicaid CMI'!$Q9,IF('Options and Impact'!$C$35='Data Validation'!$A$56,'Medicaid CMI'!$V9,IF('Options and Impact'!$C$35='Data Validation'!$A$57,'Medicaid CMI'!$AA9,IF('Options and Impact'!$C$35='Data Validation'!$A$58,'Medicaid CMI'!$AF9,IF('Options and Impact'!$C$35='Data Validation'!$A$59,'Medicaid CMI'!$AK9,IF('Options and Impact'!$C$35='Data Validation'!$A$60,$AP9,IF('Options and Impact'!$C$35='Data Validation'!$A$61,$AU9,)))))))) -> 0.9705 | BF9: =RANK(BD9,$BD$8:$BD$9) -> 2

Sheet Normalizing CMI
A2: Connecticut Department of Social Services
A3: Normalizing CMI Calculations
A5: 1 | B5: 2 | C5: 3 | E5: 20 | F5: 21 | G5: 22
A6: Medicaid Number | B6: CMS Facility Internal ID | C6: Provider Name | E6: Annual CMIs with BC1 days included for the Period of 10/01/2018 - 9/30/2019 | H6: Annual CMIs with BC1 days excluded for the Period of 10/01/2018 - 9/30/2019
E7: Total | F7: Total | G7: Normalized | H7: Total | I7: Total | J7: Normalized
E8: Points Four Quarters | F8: Days Four Quarters | G8: CMI Based on 4 Quarters | H8: Points Four Quarters | I8: Days Four Quarters | J8: CMI Based on 4 Quarters | L8: Provider Attributes
A9: 1 | B9: 1 | C9: Example Provider # 1 | E9: 23216.88 | F9: 21609 | G9: =ROUND(E9/F9,4) -> 1.0744 | H9: 23939.65 | I9: 21263 | J9: =ROUND(H9/I9,4) -> 1.1259
A10: 2 | B10: 2 | C10: Example Provider # 2 | E10: 42857.48 | F10: 46917 | G10: =ROUND(E10/F10,4) -> 0.9135 | H10: 42878.48 | I10: 46917 | J10: =ROUND(H10/I10,4) -> 0.9139

Sheet Source and Assumptions
H1: This model is Confidential and Deliberative, and is in draft form for modeling analysis. This model is iterative and will be updated as decisions or DSS requests are made. A final version will be completed subject to QA and final decision making prior to rate issuance.
A2: Connecticut Department of Social Services
A3: Source Data and Assumptions of the Rate Model
A5: Options and Impact Tab
A6: The following cost assignments on the options and impact tab represent the current reimbursement system:
A7: Reclass Management Fees Direct and Indirect set to No
A8: Administrative and General Options set to Yes
A9: Capital Included in A&G set to No
A10: Movable Equipment Interest and Other Interest Expense Included in allowable cost Set to No
A11: Return on Equity set to Yes
A12: Aids Modeled as Standard NF set to No
A13: RHNS as Standard NF set to Combined
A14: SLTC as Standard NF set to CCH only
A15: Percentage of Median to apply as Limit:
A16: Direct Care Component Limitation: 135% of the median
A17: Indirect Care Component Limitation: 115% of the median
A18: Indirect Care Component Efficiency Adjustment: 100% of the median - If the allowable per diem costs are less 100% of the median an efficiency adjustment is added to the rate equal to 25% of the difference between the per diem allowable costs and 100% of the median.
A19: Administrative and General Limitation: 100% of the median
A20: Administrative and General Component Efficiency Adjustment: 100% of the median - If the allowable per diem costs are less 100% of the median an efficiency adjustment is added to the rate equal to 25% of the difference between the per diem allowable costs and 100% of the median.
A23: Facility Profile
A24: Source: Selected Model Options based on rate setting parameters selected on the Options and Impact tab.
A25: Source: Facility Costs based on facility costs from the 9/30/2019 Rate Computation Report adjusted to consider options selected on the Options and Impact tab.
A28: Rate Calculation
A29: Source: General Provider Information and costs in columns M, V, AD, AL, AP, AT and AU are based on the 9/30/2019 Rate Computation Reports.
A30: Assumption: 9 months of the 7/1/2019 Wage Increases were added into modeled rates in column AX, as the associated expense is not included in 9/30/2019 costs.
A31: Note: Seven providers had bed changes during the period, therefore, the bed days available calculation is adjusted to account for the change.
A34: Medians
A35: Source: Medians for each cost component were calculated based on data in the 2019 Rate Computation Reports.
A36: Source: Medians were calculated based on all nursing facilities combined as well as Fairfield and Non-Fairfield Counties separately
A37: Assumption: SLTC and Aides levels of care have been excluded from the Median calculation.
A40: 9/30/19 Costs Annualized
A41: Source: Cost Year 2019 Rate Computation Reports as of March 2021.
A42: Source: Issued rates in column H as of October 2020.
A43: Assumption: Providers with an * in column C have the costs for both the CCNH and RHNS levels of care combined.
A44: Note: Days and costs for providers with a short period/long period cost report were annualized/pro-rated to 365 days (4 providers)
A46: 9/30/19 Costs Original
A47: Source: Cost Year 2019 Rate Computation Reports as of March 2021.
A48: Source: Issued rates in column AJ as of August 2021.
A49: Source: Special agreed on available days are included for two providers.
A50: Assumption: Providers with an * in column D have the costs for both the CCNH and RHNS/STLC levels of care combined.
A51: Note: Seven providers had bed changes during the period, therefore, the bed days available calculation is adjusted to account for the change.
A52: Note: The wage add-on is inclusive of wage add-ons given for the 7/1/2019, 10/1/2020, 1/1/2021 and 7/1/2021 time periods.
A53: The 10/1/2019 amounts were pro-rated to 9 months since some of the add-on would be included in the cost report.
A55: Medicaid Cost Report Cross Walk
A56: Source: Cost report groupings are shown based on the rate components they are included within, this could be subject to change based on the modeling options chosen on the Options tab
A57: Note: Fringe benefits are allocated on the basis of salaries for all rate components
A60: Inflation
A61: Source: IHS Market Healthcare Cost Review 2020 Fourth Quarter, Tables 6.7 and 7.
A62: Source: RSMeans Construction Index from the RSMeans publication, January 2019 and January 2021
A65: Medicaid CMI
A66: Source: Based on data provided by The Department of Health
A67: Regal Care Greenwich and Wolocott View Manor are temporary closures. The average CMI was used pending new quarterly assessments.
A69: Normalizing CMI
A70: Source: Based on data provided by The Department of Health

Sheet Providers
A2: Connecticut Department of Social Services
A3: Provider Selection Analysis
A4: Note: Please do not sort this tab.
I5: Count: | J5: =SUM(--(LEN(TRIM(J8:J9))>0)) -> 2 | L5: Count: | M5: =SUM(--(LEN(TRIM(M8:M9))>0)) -> 0
A6: Options Indicators | H6: Hard coded indicators | J6: Hard coded provider numbers | M6: Do Not Edit This Column. Dynamic array based on Options selected.
A7: Indicator CCH Only | B7: Indicator AIDS | C7: Indicator RHNS | D7: Indicator SLTC | E7: Indicator SecureCare | F7: SUM | G7: Include | H7: Special Indicator | I7: Facility Name | J7: Provider Number | M7: Provider Numbers to Include
A8: =IF(H8="CCH Only",1,0) -> 1 | B8: =IF(AND('Options and Impact'!$C$37="Yes",OR(H8="AIDS Only",H8="CCH/AIDS")),1,IF(AND('Options and Impact'!$C$37="No",H8="CCH No AIDS"),1,0)) -> 0 | C8: =IF(H8="RHNS Only",1,IF(AND('Options and Impact'!$C$39="CCH / RHNS Separate",OR(H8="CCH No RHNS",H8="RHNS")),1,IF(AND('Options and Impact'!$C$39="CCH / RHNS Combined",H8="CCH/RHNS"),1,IF(AND('Options and Impact'!$C$39="CCH Only",H8="CCH No RHNS"),1,0)))) -> 0 | D8: =IF(AND('Options and Impact'!$C$41="CCH / SLTC Separate",OR(H8="CCH No SLTC",H8="SLTC")),1,IF(AND('Options and Impact'!$C$41="CCH / SLTC Combined",H8="CCH/SLTC"),1,IF(AND('Options and Impact'!$C$41="CCH Only",H8="CCH No SLTC"),1,0))) -> 0 | E8: =IF(AND('Options and Impact'!$C$43='Data Validation'!$A$48,H8="SecureCare CCH Only"),1,0) -> 0 | F8: =SUM(A8:E8) -> 1 | G8: =IF(F8>0,"Yes","No") -> Yes | H8: CCH Only | I8: Example Provider # 1 | J8: 1 | M8: =IFERROR(INDEX($J$8:$J$9,SMALL(IF($G$8:$G$9="Yes",ROW($J$8:$J$9)),ROW(#REF!))-7,1),"") -> 
A9: =IF(H9="CCH Only",1,0) -> 1 | B9: =IF(AND('Options and Impact'!$C$37="Yes",OR(H9="AIDS Only",H9="CCH/AIDS")),1,IF(AND('Options and Impact'!$C$37="No",H9="CCH No AIDS"),1,0)) -> 0 | C9: =IF(H9="RHNS Only",1,IF(AND('Options and Impact'!$C$39="CCH / RHNS Separate",OR(H9="CCH No RHNS",H9="RHNS")),1,IF(AND('Options and Impact'!$C$39="CCH / RHNS Combined",H9="CCH/RHNS"),1,IF(AND('Options and Impact'!$C$39="CCH Only",H9="CCH No RHNS"),1,0)))) -> 0 | D9: =IF(AND('Options and Impact'!$C$41="CCH / SLTC Separate",OR(H9="CCH No SLTC",H9="SLTC")),1,IF(AND('Options and Impact'!$C$41="CCH / SLTC Combined",H9="CCH/SLTC"),1,IF(AND('Options and Impact'!$C$41="CCH Only",H9="CCH No SLTC"),1,0))) -> 0 | E9: =IF(AND('Options and Impact'!$C$43='Data Validation'!$A$48,H9="SecureCare CCH Only"),1,0) -> 0 | F9: =SUM(A9:E9) -> 1 | G9: =IF(F9>0,"Yes","No") -> Yes | H9: CCH Only | I9: Example Provider # 2 | J9: 2 | M9: =IFERROR(INDEX($J$8:$J$9,SMALL(IF($G$8:$G$9="Yes",ROW($J$8:$J$9)),ROW(#REF!))-7,1),"") -> 

Sheet Data Validation
A3: Data Validation
A4: Internal Use- Do Not Use
A6: Peer Groups
A7: 1 -All Facilities
A8: 2/3 - Fairfield, Non-Fairfield
A12: Type of System
A13: Cost Based
A14: Price Based
A15: Inflation Factor Options
A16: Consumer Price Index | B16: Consumer Price Index
A17: Nursing Home Without Capital Market Basket | B17: RS Means
A18: RS Means
A22: Yes
A23: No
A26: Yes - Box 3
A27: Yes - Box 4
A28: No
A31: Four QTR Avg-BCI Included
A32: Four QTR Avg-BCI Excluded
A36: Corridor
A37: Blended (Direct Only)
A38: Blended (All)
A40: CCH Only
A41: CCH / RHNS Separate
A42: CCH / RHNS Combined
A44: CCH Only
A45: CCH / SLTC Separate
A46: CCH / SLTC Combined
A48: Include
A49: Exclude
A51: Model Only
A52: Model After Phase-In/BAF
A54: 2020 Q1
A55: 2020 Q2
A56: 2020 Q3
A57: 2020 Q4
A58: 2021 Q1
A59: 2021 Q2
A60: 2021 Q3
A61: 2021 Q4
